{"text_format":"1","workbook":"xlsx","n_sheets":21,"sheets":["ورقة1","list","reportinfo","معلومات الحادث ","مسبب","المتضررة","القطع ","العطل ونقصان القيمة","الاصلاحات ","الفاتورة","نقصان قضية","نقصان وعطل","قضية عادي","التقرير","وصل إستلام ","الصور","الهيئة","السجل","للنقل","فلتر","ارقام الخلايا المطلوب تفريغها"],"not_rendered":{"charts":0,"images":13,"macros":1,"external_links":0,"defined_names":1,"comments":3,"pivot_tables":0},"unopened":[],"bounds":{"document_bytes":16777216,"sheet_cells":100000,"rows_first":2000,"rows_last":500,"rows_between":2000,"halvings":0,"cell_chars":16384,"cell_head_chars":4096},"cells_cut":0,"cells_raw":0,"read":"whole","date_system":"1900"}

{"sheet":"ورقة1","index":0,"n_rows":25,"n_cols":14,"rows_kept":25,"cut":false,"hidden":false,"merged":[[5,4,6,5],[7,4,7,5],[8,4,8,5],[9,4,9,5],[4,10,4,11],[1,11,1,15],[1,4,1,8],[2,4,2,7],[4,4,4,5],[4,7,4,8],[2,10,2,15],[24,8,24,11],[22,8,23,9],[22,10,23,11],[10,4,10,5],[11,4,11,5],[12,4,12,5],[13,4,13,5],[14,4,14,5],[15,4,15,5],[16,4,16,5],[17,4,17,5],[18,4,18,5],[19,4,19,5],[20,4,20,5]]}
[]
[null,"أسماء وعناوين الشركات",null,null," مؤسسة العقاب لتسوية الخسائر ",null,null,null,null,null,null,"AL - EQAB EAST "]
[null,null,null,null," معاين ومسوي خسائر - مرخص ",null,null,null,null,null,"Loss Adjuster By The Insurance Expert"]
[]
[null,null,null,null,"إدخال المعلومات ",null,null,"طباعة التقرير",null,null,"تعديل وتحويل PDF"]
[]
[]
[]
[]
[]
[]
[]
[]
[]
[]
[]
[]
[]
[]
[null,null,null,null,null,null,null,null,null,null,null,null,null," "]
[null,null,null,null,null,null," "]
[]
[null,null,null,null,null,null,null,null,"إعداد عامر المتولي  ",null,"962 79 72 78 792"]
[]
[null,null,null,null,null,null,null,null,"amer.metwaly@gmail.com"]

{"sheet":"list","index":1,"n_rows":21,"n_cols":1,"rows_kept":21,"cut":false,"hidden":true,"merged":[]}
[]
["الإتحاد الأردني لشركات التأمين "]
["شركة التأمين الأردنية"]
["شركة الشرق الأوسط للتأمين "]
["شركة تأمين الوطنية "]
["الشركة المتـحدة للتأمين"]
["شركة المنارة للتأمين "]
["الشركة العربية - الأردن للتأمين "]
["شركة القدس للتأمين "]
["شركة النسر العربي للتأمين "]
["الشركة الأردنيه الفرنسية للتأمين "]
["شركة الإتحاد العربي الدولي للتأمين "]
["شركة دلتـا للتأمين "]
["شركة الأراضي المقدسة للتأمين "]
["شركة العرب للتأمين على الحياة والحوادث"]
["شركة فيـلادلفيا للتأمين "]
["شركة الأردن الدولية للتأمين "]
["شركة الشرق العربي للتأمين "]
["شركة المجموعة العربية الأردنية للتأمين "]
["شركة المجموعة العربية الاوروبية للتأمين "]
["شركة الصفوة للتأمين "]

{"sheet":"reportinfo","index":2,"n_rows":33,"n_cols":2,"rows_kept":33,"cut":false,"hidden":false,"merged":[[0,1,1,8],[2,3,2,8],[3,3,3,8],[8,1,8,2],[9,1,9,2],[7,1,7,2],[9,3,9,8],[5,1,5,2],[6,1,6,2],[2,1,2,2],[3,1,3,2],[4,1,4,2],[12,3,12,8],[4,3,4,8],[5,3,5,8],[6,5,6,8],[7,3,7,8],[8,5,8,8],[10,1,11,8]]}
["الإتحاد الأردني لشركات التأمين ","معلومات التقرير "]
["شركة التأمين الإسلامية "]
["شركة التأمين الأردنية","رقم التقرير "]
["شركة الشرق الأوسط للتأمين ","تاريخ التقرير "]
["شركة تأمين الوطنية ","إسم الشركة "]
["الشركة المتـحدة للتأمين","رقم الحادث في الشركة"]
["شركة المنارة للتأمين ","ارقام اخرى للشركة "]
["الشركة العربية - الأردن للتأمين "]
["شركة القدس للتأمين ","ملاحظة تظهر على الخلاصة "]
["شركة النسر العربي للتأمين "]
["الشركة الأردنيه الفرنسية للتأمين ","معلومات خاصة لتقارير القضايا "]
["شركة الإتحاد العربي الدولي للتأمين "]
["شركة دلتـا للتأمين ","حدد هل تم الكشف من قبل الشركة ام لا "]
["شركة الأراضي المقدسة للتأمين "]
["شركة العرب للتأمين على الحياة والحوادث"]
["شركة فيـلادلفيا للتأمين "]
["شركة الأردن الدولية للتأمين "]
["شركة الشرق العربي للتأمين "]
["شركة الضامنون العرب "]
["شركة المجموعة العربية الأردنية للتأمين "]
["شركة المجموعة العربية الاوروبية للتأمين "]
["شركة الصفوة للتأمين "]
["شركة الصفوة للتأمين "]
[]
[]
["رقم الدعوى "]
["قضية رقم "]
[]
[]
["وصــور والكشــف  المنظم من قبِل معاين الشركة قبل عملية الاصلاح . "]
[" وكونه لم يتم الكشف عليها من قبل معاين الشركة او خبير مختص لتقيم أضرار المركبة ."]
[]
["ملاحظـــة /"]

{"sheet":"معلومات الحادث ","index":3,"n_rows":16,"n_cols":6,"rows_kept":16,"cut":false,"hidden":false,"merged":[[0,5,2,10],[3,5,4,6],[5,5,6,6],[7,5,8,6],[9,5,10,6],[15,5,16,6],[17,5,18,6],[3,7,4,10],[5,7,6,10],[7,7,8,10],[9,7,10,10],[13,7,14,10],[15,7,16,10],[17,7,18,10],[13,5,14,6],[11,5,12,6],[11,7,12,10]]}
[null,null,null,null,null,"معلومات الحادث "]
["السبت "]
["الأحد"]
["الأثنين",null,null,null,null,"رقم تقرير الشرطة "]
["الثلاثاء"]
["الأربعاء ",null,null,null,null,"تاريخ الحادث"]
["الخميس"]
["الجمعه ",null,null,null,null,"اليوم "]
[]
["مادية بالمركبات",null,null,null,null,"صادر من مديرية شرطة"]
["جسماني "]
["مادية + جسمانية ",null,null,null,null,"نقطة الصدم الاولى"]
[]
[null,null,null,null,null,"إسم المركز الأمني "]
[]
[null,null,null,null,null,"نتائج الحادث "]

{"sheet":"مسبب","index":4,"n_rows":13,"n_cols":8,"rows_kept":13,"cut":false,"hidden":false,"merged":[[11,4,11,6],[12,4,12,6],[12,7,12,10],[13,7,13,10],[0,4,2,10],[8,7,8,10],[9,7,9,10],[10,7,10,10],[11,7,11,10],[14,7,14,10],[3,4,3,6],[4,4,4,6],[5,4,5,6],[6,4,6,6],[7,4,7,6],[8,4,8,6],[9,4,9,6],[14,5,14,6],[3,7,3,10],[4,7,4,10],[5,7,5,10],[6,7,6,10],[7,7,7,10],[13,5,13,6],[10,4,10,6]]}
["شامل ",null,null,null,"معلومات المركبة المسببة بالحادث "]
["ضد الغير "]
["خسارة كلية "]
["تكميلي ",null,null,null,"رقم المركبة "]
["أخرى",null,null,null,"اسم المالك"]
[null,null,null,null,"اسم السائق",null,null,{"$f":"H5","v":0}]
[null,null,null,null,"نوع المركبة "]
[null,null,null,null,"الاستعمال"]
[null,null,null,null,"رقم عقد التأمين "]
[null,null,null,null,"مدة التأمين "]
[null,null,null,null,"نوع التأمين "]
[null,null,null,null,"رقم المركبة في تقرير الشرطة"]
[null,null,null,null,"الآخطاء "]

{"sheet":"المتضررة","index":5,"n_rows":26,"n_cols":7,"rows_kept":26,"cut":false,"hidden":false,"merged":[[20,6,20,8],[9,6,9,8],[10,6,10,8],[11,6,11,8],[12,6,12,8],[13,6,13,8],[14,6,14,8],[15,6,15,8],[16,6,16,8],[17,6,17,8],[18,6,18,8],[19,6,19,8],[27,3,27,5],[0,3,2,8],[3,6,3,8],[4,6,4,8],[5,6,5,8],[6,6,6,8],[7,6,7,8],[8,6,8,8],[21,3,21,5],[22,3,22,5],[23,3,23,5],[24,3,24,5],[25,3,25,5],[26,3,26,5],[15,3,15,5],[16,3,16,5],[17,3,17,5],[18,3,18,5],[19,3,19,5],[20,3,20,5],[9,3,9,5],[10,3,10,5],[11,3,11,5],[12,3,12,5],[13,3,13,5],[14,3,14,5],[8,3,8,5],[3,3,3,5],[4,3,4,5],[5,3,5,5],[6,3,6,5],[7,3,7,5]]}
[null,null,null,"معلومات المركبة المتضررة (موضوع التقرير)"]
["الإتحاد الأردني لشركات التأمين "]
["شركة التأمين الأردنية"]
["شركة الشرق الأوسط للتأمين ",null,null,"رقم المركبة "]
["شركة تأمين الوطنية ",null,null,"اسم المالك"]
["الشركة المتـحدة للتأمين",null,null,"اسم السائق",null,null,{"$f":"G5","v":0}]
["شركة المنارة للتأمين ",null,null,"نوع المركبة "]
["الشركة العربية - الأردن للتأمين ",null,null,"الصنف"]
["شركة القدس للتأمين ",null,null,"الموديل "]
["شركة النسر العربي للتأمين ",null,null,"اللون"]
["الشركة الأردنيه الفرنسية للتأمين ",null,null,"رقم الشاصي"]
["شركة الإتحاد العربي الدولي للتأمين ",null,null,"الاستعمال"]
["شركة دلتـا للتأمين ",null,null,"إسم شركة التأمين "]
["شركة الأراضي المقدسة للتأمين ",null,null,"رقم عقد التأمين "]
["شركة العرب للتأمين على الحياة والحوادث",null,null,"مدة التأمين "]
["شركة فيـلادلفيا للتأمين ",null,null,"نوع التأمين "]
["شركة الأردن الدولية للتأمين ",null,null,"رقم المركبة في تقرير الشرطة"]
["شركة الشرق العربي للتأمين ",null,null,"الآخطاء "]
["شركة المجموعة العربية الأردنية للتأمين ",null,null,"نقاط التضرر حسب تقرير الشرطة "]
["شركة المجموعة العربية الاوروبية للتأمين ",null,null,"منطقة الكشف على المركبة "]
["شركة الصفوة للتأمين ",null,null,"تاريخ الكشف على المركبة "]
["شركة التأمين الإسلامية",null,null,"أدخل ملاحظات تظهر عند نقاط الضرر "]
["شركة الضامنون العرب"]
[]
["/ملاحظة"]
["/ملاحظات"]

{"sheet":"القطع ","index":6,"n_rows":31,"n_cols":8,"rows_kept":31,"cut":false,"hidden":false,"merged":[[32,5,32,7],[30,5,30,7],[33,5,33,7],[32,3,32,4],[33,3,33,4],[30,1,30,4],[0,1,1,7],[12,2,12,4],[13,2,13,4],[14,2,14,4],[15,2,15,4],[4,2,4,4],[5,2,5,4],[6,2,6,4],[8,2,8,4],[9,2,9,4],[10,2,10,4],[11,2,11,4],[2,5,2,7],[7,2,7,4],[2,2,3,4],[2,1,3,1],[16,2,16,4],[17,2,17,4],[18,2,18,4],[19,2,19,4],[29,1,29,4],[20,2,20,4],[21,2,21,4],[22,2,22,4],[23,2,23,4],[24,2,24,4],[25,2,25,4],[26,2,26,4],[27,2,27,4],[28,2,28,4]]}
[null,"القطع التبديلية "]
[]
[null,"الرقم ","إسم القطعة ",null,null,"السعر "]
[]
[null,1,null,null,null,null,{"$f":"F5","v":0},{"$f":"G5","v":0}]
[null,2,null,null,null,null,{"$f":"F6","v":0},0]
[null,3,null,null,null,null,0,0]
[null,4,null,null,null,null,0,0]
[null,5,null,null,null,null,0,0]
[null,6,null,null,null,null,0,0]
[null,7,null,null,null,null,0,0]
[null,8,null,null,null,null,0,0]
[null,9,null,null,null,null,0,0]
[null,10,null,null,null,null,0,0]
[null,11,null,null,null,null,0,0]
[null,12,null,null,null,null,0,0]
[null,13,null,null,null,null,0,0]
[null,14,null,null,null,null,0,0]
[null,15,null,null,null,null,0,0]
[null,16,null,null,null,null,0,0]
[null,17,null,null,null,null,0,0]
[null,18,null,null,null,null,0,0]
[null,19,null,null,null,null,0,0]
[null,20,null,null,null,null,0,0]
[null,21,null,null,null,null,0,0]
[null,22,null,null,null,null,0,0]
[null,23,null,null,null,null,0,0]
[null,24,null,null,null,null,0,0]
[null,25,null,null,null,null,0,0]
[null,"المجموع ",null,null,null,{"$f":"SUM(F5:F29)","v":0},{"$f":"SUM(G5:G29)","v":0},{"$f":"SUM(H5:H29)","v":0}]
[null,"متوسط السعر ",null,null,null,{"$f":"AVERAGE(F30:H30)","v":0}]

{"sheet":"العطل ونقصان القيمة","index":7,"n_rows":25,"n_cols":16,"rows_kept":25,"cut":false,"hidden":false,"merged":[[17,2,17,6],[18,2,18,6],[19,2,19,6],[20,2,20,6],[17,1,20,1],[5,12,6,14],[14,9,14,10],[5,9,6,11],[8,9,8,14],[9,11,9,14],[10,11,10,14],[11,11,11,14],[12,11,12,14],[13,11,13,14],[14,11,14,14],[13,9,13,10],[9,9,9,10],[10,9,10,10],[11,9,11,10],[12,9,12,10],[0,9,2,14],[3,12,3,14],[4,12,4,14],[3,9,3,10],[3,5,3,7],[4,5,4,7],[0,1,2,7],[3,1,3,4],[4,1,4,4],[4,9,4,10],[14,2,14,7],[7,4,7,5],[5,1,5,4],[6,1,6,4],[6,5,6,7],[5,5,5,7],[11,2,11,6],[7,1,7,3],[8,1,8,7],[9,2,9,7],[10,2,10,7],[12,2,12,7],[13,2,13,7],[15,1,15,7],[16,1,16,4],[16,5,16,7],[15,9,16,10],[15,11,16,14]]}
[null,"تحديد نقصان القيمة ",null,null,null,null,null,null,null,"تحديد بدل فوات المنفعة "]
[]
[]
[null,"قيمة المركبة قبل الحادث",null,null,null,null,null,null,null,"(عدد أيام العطل)"]
[null,"قيمة المركبة بعد الحادث قبل أو بعد عملية الاصلاح",null,null,null,null,null,null,null,"مبلغ التعطيل اليومي "]
[null,"الفرق بيـن القيمة السوقية قبل الحـادث قبـل أوبعد الإصلاح  ",null,null,null,{"$f":"F4-F5","v":0},null,null,null,"المجموع ",null,null,{"$f":"L4*L5","v":0}]
[null,"أقدر الانخفـض في قيمة المركبة قبل أو بعـد عملية الإصلاح",null,null,null,{"$f":"F6-E8","v":0}]
[null,"مجموع القطع والأجور ",null,null,{"$f":"SUM('الاصلاحات '!E29+'القطع '!F30)","v":0}]
[null,"أية ملاحظات تظهر  على صفحة القطع والاجور ",null,null,null,null,null,null,null,"خلاصة التقرير "]
["وبعد الإطلاع على الفحص الفني على المركبة بعد الإصلاح .",null,null,null,null,null,null,null,null,"القطع",null,{"$f":"'القطع '!F31","v":0}]
["دينار",1,null,null,null,null,null,null,null,"الأجور",null,{"$f":"'الاصلاحات '!E29","v":0}]
["دنانير",2,null,null,null,null,null,null,null,"مجموع القطع والأجور ",null,{"$f":"L10+L11","v":0}]
[null,3,null,null,null,null,null,null,null,"نقصان القيمة",null,{"$f":"F7","v":0}]
[null,4,null,null,null,null,null,null,null,"التعطيل ",null,{"$f":"M6","v":0}]
["يوم",5,null,null,null,null,null,null,null,"ونش"]
["أيام ","خاص بتقرير النقصان والتعطيل فقط وملاحظات تظهر على بند نقصان القيمة ",null,null,null,null,null,null,null,"إجمالي الحادث ",null,{"$f":"L12+L13+L14+L15","v":0}]
[null,"إذا كان يوجد فحص للمركبة بعد الحادث يرجى تفعيل المربع المقابل "]
[]
[null,null,null,null,null,null,null,null,null,null,null,null,null,null,null,"ملاحظة / "]
[]
[]
[]
[]
[]
[null,"ملاحظة "]

{"sheet":"الاصلاحات ","index":8,"n_rows":32,"n_cols":5,"rows_kept":32,"cut":false,"hidden":false,"merged":[[26,1,26,3],[26,4,26,6],[27,1,27,3],[27,4,27,6],[28,0,28,3],[28,4,28,6],[23,1,23,3],[23,4,23,6],[24,1,24,3],[24,4,24,6],[25,1,25,3],[25,4,25,6],[20,1,20,3],[20,4,20,6],[21,1,21,3],[21,4,21,6],[22,1,22,3],[22,4,22,6],[17,1,17,3],[17,4,17,6],[18,1,18,3],[18,4,18,6],[19,1,19,3],[19,4,19,6],[14,1,14,3],[14,4,14,6],[15,1,15,3],[15,4,15,6],[16,1,16,3],[16,4,16,6],[11,1,11,3],[11,4,11,6],[12,1,12,3],[12,4,12,6],[13,1,13,3],[13,4,13,6],[8,4,8,6],[9,1,9,3],[9,4,9,6],[10,1,10,3],[10,4,10,6],[31,0,31,3],[31,4,31,6],[0,0,1,6],[2,1,2,3],[2,4,2,6],[3,1,3,3],[3,4,3,6],[4,1,4,3],[4,4,4,6],[5,1,5,3],[5,4,5,6],[6,1,6,3],[6,4,6,6],[7,1,7,3],[7,4,7,6],[8,1,8,3]]}
["الاصلاحات المطلوبة أو التي تمت إصلاحها"]
[]
["الرقم ","إسم الإصلاح المطلوب ",null,null,"السعر "]
[1]
[2]
[3]
[4]
[5]
[6]
[7]
[8]
[9]
[10]
[11]
[12]
[13]
[14]
[15]
[16]
[17]
[18]
[19]
[20]
[21]
[22]
[23]
[24]
[25]
["المجموع ",null,null,null,{"$f":"SUM(E4:G28)","v":0}]
[]
[]
["مجموع القطع والاصلاحات ",null,null,null,{"$f":"E29+'القطع '!F31","v":0}]

{"sheet":"الفاتورة","index":9,"n_rows":67,"n_cols":12,"rows_kept":67,"cut":false,"hidden":false,"merged":[[9,7,9,10],[0,4,2,10],[3,4,3,6],[4,4,4,6],[5,4,5,6],[6,4,6,6],[5,7,5,10],[4,7,4,10],[3,7,3,10],[7,4,7,6],[8,4,8,6],[8,7,8,10],[7,7,7,10],[6,7,6,10],[9,4,9,6],[10,4,11,11],[12,4,12,5],[13,4,13,5],[14,4,14,5],[13,6,13,10],[14,6,14,10],[12,7,12,10]]}
[null,null,null,null,"تفاصيل الفاتورة "]
[]
[]
[null,null,null,null,"نوع التقرير "]
["تقرير خبرة ",null,null,null,"مبلغ التقرير "]
["خبرة ",null,null,null,"أتعاب أخرى "]
["تسوية حادث",null,null,null,"مبلغ أتعاب أخرى"]
[null,null,null,null,"حصة الطرف الثالث"]
[20,null,null,null,"مبلغ حصة الطرف الثالث "]
[25,null,null,null,"مجموع الفاتورة ",null,null,{"$f":"H5+H7+H9","v":0}]
[30,null,null,null,"معلومات وصل الاستلام "]
[40]
[50,null,null,null,"وصلني من ",null,"السيد",{"$f":"المتضررة!G5","v":0}]
[60,null,null,null,"مبلغ وقدره "]
[null,null,null,null,"وذلك بدل "]
["بدل رسوم كارسير"]
[null,null,null,null,null,null,null,null,null,null,null,"المحترم"]
[10,null,null,null,null,null,null,null,null,null,null,"المحترمين"]
[15,null,null,null,null,null,null,null,null,null,null,"المحترمة"]
[20]
[25]
[30]
[35]
[40]
[45]
[50]
[55]
[60]
[]
[" حصـة الطــرف الثالـث مـن أتعــاب الخبـرة وإقتطاعها من مبلغ التعويض"]
[]
[]
[]
[]
[]
[]
[20]
[40]
[60]
[70]
[80]
[90]
[100]
[110]
[120]
[130]
[140]
[150]
[160]
[170]
[180]
[200]
[]
["تقرير خبرة "]
[]
["السيد"]
["السيدة "]
["الأنسة "]
["السادة "]
["الدكتور"]
["الدكتورة "]
["الأستاذ"]
["الاستاذة"]
["عطوفة السيد"]
["سعادة السيد"]
["معالي السيد"]
["دولة السيد "]

{"sheet":"نقصان قضية","index":10,"n_rows":340,"n_cols":9,"rows_kept":340,"cut":false,"hidden":false,"merged":[[136,1,136,4],[137,1,137,4],[339,0,339,9],[237,0,237,2],[237,6,237,9],[238,0,238,2],[238,6,238,9],[286,0,286,9],[287,0,287,9],[289,0,289,2],[289,6,289,9],[290,0,290,2],[290,6,290,9],[338,0,338,9],[235,0,235,9],[143,0,143,2],[143,6,143,9],[144,0,144,2],[144,6,144,9],[185,0,185,9],[186,0,186,9],[189,0,189,2],[189,6,189,9],[190,0,190,2],[190,6,190,9],[234,0,234,9],[145,1,145,2],[148,0,148,9],[150,1,150,3],[151,1,151,3],[153,0,153,9],[155,2,156,2],[155,4,156,4],[155,5,156,5],[155,6,156,6],[174,7,174,9],[175,7,175,9],[48,0,48,2],[48,6,48,9],[49,0,49,2],[49,6,49,9],[91,0,91,9],[92,0,92,9],[94,0,94,2],[94,6,94,9],[95,0,95,2],[95,6,95,9],[50,1,50,2],[52,1,52,3],[52,6,52,7],[52,8,52,9],[60,1,60,2],[60,3,60,4],[60,5,60,6],[60,7,60,8],[61,2,61,4],[61,6,61,8],[53,6,53,7],[53,8,53,9],[56,4,56,5],[56,8,56,9],[10,0,10,1],[10,4,10,5],[10,8,10,9],[12,3,12,4],[12,5,12,9],[46,0,46,9],[1,0,1,2],[1,6,1,9],[2,0,2,2],[2,6,2,9],[45,0,45,9],[3,1,3,2],[5,1,5,3],[5,6,5,7],[5,8,5,9],[6,6,6,7],[6,8,6,9],[8,1,8,5],[9,0,9,1],[9,4,9,5],[9,8,9,9],[15,8,15,9],[17,0,17,9],[18,0,18,9],[13,2,13,3],[13,5,13,6],[14,2,14,3],[14,5,14,6],[15,2,15,3],[15,5,15,7],[34,1,34,8],[35,1,35,8],[36,7,36,9],[37,7,37,9],[21,0,21,1],[21,2,21,9],[19,0,19,9],[22,0,22,9],[30,1,30,6],[30,7,31,8],[31,1,31,6],[32,1,32,8],[33,1,33,8],[25,1,26,6],[25,7,25,8],[27,7,27,8],[28,1,29,3],[28,5,29,5],[28,7,29,8],[20,0,20,9],[23,0,23,9],[24,0,24,9],[59,3,59,4],[59,5,59,6],[65,2,65,4],[65,6,65,8],[66,2,66,4],[66,6,66,8],[67,2,67,4],[67,6,67,8],[62,2,62,4],[62,6,62,8],[63,2,63,4],[63,6,63,8],[64,2,64,4],[64,6,64,8],[73,3,73,5],[75,2,75,8],[78,0,78,9],[80,1,80,2],[80,3,80,8],[68,2,68,4],[68,6,68,8],[69,2,69,4],[69,6,69,8],[72,1,72,8],[96,1,96,2],[102,3,102,6],[103,3,103,6],[81,1,81,2],[81,3,81,8],[82,1,82,3],[83,1,83,3],[84,1,84,3],[85,1,85,3],[86,1,86,3],[109,3,109,6],[110,3,110,6],[111,3,111,6],[112,3,112,6],[113,1,113,2],[104,3,104,6],[105,3,105,6],[106,3,106,6],[107,3,107,6],[108,3,108,6],[119,0,119,9],[122,1,122,9],[123,1,123,9],[126,1,127,6],[126,7,126,8],[127,7,127,8],[114,1,114,4],[115,1,115,4],[116,1,116,4],[117,1,117,4],[118,1,118,4],[128,1,128,6],[128,7,128,8],[129,1,129,6],[129,7,129,8],[130,1,130,6],[130,7,130,8],[141,0,141,9],[140,0,140,9],[171,1,171,8],[166,1,166,6],[166,7,167,8],[167,1,167,6],[169,1,169,8],[170,1,170,8],[159,0,159,9],[161,1,162,6],[161,7,161,8],[163,7,163,8],[164,1,165,3],[164,5,165,5],[164,7,165,8],[133,1,133,4],[134,1,134,4],[135,1,135,4]]}
[]
["    مؤسسة العقاب لتسوية الخسائر ",null,null,null,null,null,"AL - EQAB EAST "]
[" معاين ومسوي خسائر - مرخص ",null,null,null,null,null,"Loss Adjuster by the Insurance expert"]
["التاريــــــخ:-",{"$f":"reportinfo!D4","v":"00:00:00"},null,null,null,null,null,"تقرير رقم :- ",{"$f":"reportinfo!D3","v":0}]
[]
["الســــادة / ",{"$f":"reportinfo!D5","v":0},null,null,"المحترمين ",null,"إدعائكم رقم",null,{"$f":"reportinfo!D6","v":0}]
[null,"تحيـة طيبـة وبعــد ,,,",null,null,null,null,{"$f":"reportinfo!B8","v":0},null,{"$f":"reportinfo!D8","v":0}]
[]
[null," الموضوع / تقدير أضرار المركبة ذات المواصفات التالية :-"]
["رقم المركبة ",null,"النوع","الصنف","الشكل و الاستعمال",null,"اللون ","الموديل","رقم الشصي"]
[{"$f":"المتضررة!G4","v":0},null,{"$f":"المتضررة!G7","v":0},{"$f":"المتضررة!G8","v":0},{"$f":"المتضررة!G12","v":0},null,{"$f":"المتضررة!G10","v":0},{"$f":"المتضررة!G9","v":0},{"$f":"المتضررة!G11","v":0}]
[]
["جـراء الحادث الـذي وقـع بتـاريــــخ",null,null,{"$f":"'معلومات الحادث '!H6","v":"00:00:00"},null,"مع المركبة المتسببة في الحادث ذات المواصفات التالية  :-"]
[null,null,"رقم المركبة ",null,"النــوع","الشكل والإستعمال "]
[null,null,{"$f":"مسبب!H4","v":0},null,{"$f":"مسبب!H7","v":0},{"$f":"مسبب!H8","v":0}]
["والمؤمنة لديكم بالعقد رقم",null,{"$f":"مسبب!H9","v":0},null,"للـفتــرة ",{"$f":"مسبب!H10","v":0},null,null,{"$f":"مسبب!H11","v":0}]
[]
["بالإشارة الى الموضوع اعلاه وبناءاً على تكليفكم لي  بإجراء الخبرة الفنية على المركبة  المتضرره موضوع هذا التقرير"]
["معتمداً على صور المركبة لحظة وقوع الحادث ومطابقتها مع نقاط الضرر فـي المخطـط المـروري ,"]
[{"$f":"reportinfo!E13","v":0}]
["بناءً عليه قمت بدراسة المخطط المروري وصور الحادث حيث تم تحديد الاضرار ومطابقتها مع نقاط الضرر الواقعه "]
["على المركبة ."]
["بناءً عليه تم تحديد الأضرار  اللاحقـة بالمـركبـة فـي هيكلهــا الاساسـي , التـي أدت إلى تدني قيمة المركبة السوقيـة "]
["ن(نقصان القيمة ), وأيضا تحديد ساعات العمل اللازمة لإصلاحها (بدل فوات المنفعة )."]
["وأنني أقــدم لكم خلاصة هذا التقرير :-"]
[null,"البـيــــــــــان ",null,null,null,null,null,"القيمـــة"]
[null,null,null,null,null,null,null,"فلس","دينار"]
[null,"  أقدر بدل نقصان القيمة بــ",null,null,null,null,null,{"$f":"'العطل ونقصان القيمة'!F7","v":0}]
[null,"  أقدر بدل فوات المنفعة بـــ",null,null,{"$f":"'العطل ونقصان القيمة'!M4","v":0},"X",{"$f":"'العطل ونقصان القيمة'!M5","v":0},{"$f":"'العطل ونقصان القيمة'!M6","v":0}]
[null,null,null,null,{"$f":"'العطل ونقصان القيمة'!L4","v":0},null,{"$f":"'العطل ونقصان القيمة'!L5","v":0}]
[null,"أقدر اجمالــــــي تكلفة الحادث  بـــ",null,null,null,null,null,{"$f":"'العطل ونقصان القيمة'!L16","v":0}]
[null,{"$f":"Cur(H31,\"دينارأردني\",\"فلس\")","v":"صفر"}]
[{"$f":"reportinfo!B10","v":0},{"$f":"reportinfo!D10","v":0}]
[]
[null,"أتمنى أن أكون قـد وفقت في أداء المهمة الموكلة لي بكل أمانة وإخلاص ."]
[null,"وتفضلوا بقبول فائق الإحترام والتقدير ,,,,"]
[null,null,null,null,null,null,null,"معاين ومسوي خسائر"]
[null,null,null,null,null,null,null,"محمد أحمد عبد الله العوامله "]
[]
[]
[]
[]
[]
[]
[]
["عمان -إِشارةالرابية بجانب فندق ديز إن-تلفاكس :(06/5504053)تلفون :(06/5504054)موبايل:(0795575439)"]
["Amman - AL Rabyah Traffic - Dayes In Hotel   * Telfax: 06 550 40 53 Tel :06 550 40 54 Mobile:079 557 54 39"]
[]
["    مؤسسة العقاب لتسوية الخسائر ",null,null,null,null,null,"AL - EQAB EAST "]
[" معاين ومسوي خسائر - مرخص ",null,null,null,null,null,"Loss Adjuster by the Insurance expert"]
["التاريــــــخ:-",{"$f":"B4","v":"00:00:00"},null,null,null,null,null,"تقرير رقم :- ",{"$f":"I4","v":0}]
[]
[" الســــادة /",{"$f":"reportinfo!D5","v":0},null,null,"المحترمين ",null,"إدعائكم رقم",null,{"$f":"reportinfo!D6","v":0}]
[null,null,null,null,null,null,{"$f":"reportinfo!B8","v":0},null,{"$f":"reportinfo!D8","v":0}]
[null,"تحيـة طيبـة وبعــــد,,,"]
[]
[" الموضوع : -        تقديرأضرارالمركبة رقم ",null,null,null,{"$f":"A11","v":0},null,"نـــــــوع",{"$f":"C11","v":0},{"$f":"D11","v":0}]
[]
["أولاً:وقائع الحادث حسب ضبط الشرطة الصادرمن مديرية شرطة ",null,null,null,null,{"$f":"'معلومات الحادث '!H10","v":0},"مركز أمن ",{"$f":"'معلومات الحادث '!H14","v":0}]
[null,null,null,"رقم تسلسل الكروكي",null,{"$f":"'معلومات الحادث '!H4","v":0}]
[null,"رقم المركبة في الكروكي",null,{"$f":"المتضررة!G17","v":0},null,"رقم المركبة في الكروكي",null,{"$f":"مسبب!H12","v":0}]
[null,"رقم السيارة ",{"$f":"المتضررة!G4","v":0},null,null,"رقم السيارة ",{"$f":"مسبب!H4","v":0}]
[null,"المالــك ",{"$f":"المتضررة!G5","v":0},null,null,"المالــك ",{"$f":"مسبب!H5","v":0}]
[null,"السـائـق",{"$f":"المتضررة!G6","v":0},null,null,"السـائـق",{"$f":"مسبب!H6","v":0}]
[null,"نــوع ",{"$f":"المتضررة!G7","v":0},null,null,"نــوع ",{"$f":"مسبب!H7","v":0}]
[null,"الاستعمـال ",{"$f":"المتضررة!G12","v":0},null,null,"الاستعمـال ",{"$f":"مسبب!H8","v":0}]
[null,"مؤمنة لدى ",{"$f":"المتضررة!G13","v":0},null,null,"مؤمنة لدى ",{"$f":"reportinfo!D5","v":0}]
[null,"رقم العقـد",{"$f":"المتضررة!G14","v":0},null,null,"رقم العقـد",{"$f":"مسبب!H9","v":0}]
[null,"مدة التأمين ",{"$f":"المتضررة!G15","v":0},null,null,"مدة التأمين ",{"$f":"مسبب!H10","v":0}]
[null,"الاخطاء ",{"$f":"المتضررة!G18","v":0},null,null,"الاخطاء ",{"$f":"مسبب!H13","v":0}]
[]
[]
[null,"تفاصيل الحادث :-"]
[null,-1,"نتيجة ",{"$f":"مسبب!H13","v":0},null,null,"من قبل سائق المركبة رقم ",null,{"$f":"مسبب!H12","v":0}]
[null,null,"مما أدى إلى إصطدامها  بالمركبة رقم ",null,null,{"$f":"D61","v":0},"بالنقطة رقم ",{"$f":"'معلومات الحادث '!H12","v":0}]
[]
[null,-2,"نتائج الحادث ",{"$f":"'معلومات الحادث '!H16","v":0}]
[]
["ثانياَ :- نقاط ضرر المركبة موضوع هذا التقرير حسب تقرير الشرطة"]
[]
[null,"منقطة الكشـف ",null,{"$f":"المتضررة!G20","v":0}]
[null,"مناطق الضرر ",null,{"$f":"المتضررة!G19","v":0}]
[{"$f":"المتضررة!D23","v":0},{"$f":"المتضررة!D24","v":0}]
[null,{"$f":"المتضررة!D25","v":0}]
[null,{"$f":"المتضررة!D26","v":0}]
[null,{"$f":"المتضررة!D27","v":0}]
[null,{"$f":"المتضررة!D28","v":0}]
[]
[]
[]
[]
["عمان -إِشارةالرابية بجانب فندق ديز إن-تلفاكس :(06/5504053)تلفون :(06/5504054)موبايل:(0795575439)"]
["Amman - AL Rabyah Traffic - Dayes In Hotel   * Telfax: 06 550 40 53 Tel :06 550 40 54 Mobile:079 557 54 39"]
[]
["    مؤسسة العقاب لتسوية الخسائر ",null,null,null,null,null,"AL - EQAB EAST "]
[" معاين ومسوي خسائر - مرخص ",null,null,null,null,null,"Loss Adjuster by the Insurance expert"]
[{"$f":"A51","v":"التاريــــــخ:-"},{"$f":"B51","v":"00:00:00"},null,null,null,null,null,"تقرير رقم :- ",{"$f":"reportinfo!D3","v":0}]
[]
[]
[]
[" ثالثــــــاً :  تحديــــد الإصلاحــــــات التـــــي تمــــت علــى المـركبـــة "]
[]
[null,null,"الرقم ","البيـــــــــــــان"]
[null,null,1,{"$f":"'الاصلاحات '!B4","v":0}]
[null,null,2,{"$f":"'الاصلاحات '!B5","v":0}]
[null,null,3,{"$f":"'الاصلاحات '!B6","v":0}]
[null,null,4,{"$f":"'الاصلاحات '!B7","v":0}]
[null,null,5,{"$f":"'الاصلاحات '!B8","v":0}]
[null,null,6,{"$f":"'الاصلاحات '!B9","v":0}]
[null,null,7,{"$f":"'الاصلاحات '!B10","v":0}]
[null,null,8,{"$f":"'الاصلاحات '!B11","v":0}]
[null,null,9,{"$f":"'الاصلاحات '!B12","v":0}]
[null,null,10,{"$f":"'الاصلاحات '!B13","v":0}]
[null,{"$f":"'العطل ونقصان القيمة'!C10","v":0}]
[null,{"$f":"'العطل ونقصان القيمة'!C11","v":0}]
[null,{"$f":"'العطل ونقصان القيمة'!C12","v":0}]
[null,{"$f":"'العطل ونقصان القيمة'!C13","v":0}]
[null,{"$f":"'العطل ونقصان القيمة'!C14","v":0}]
[null,{"$f":"'العطل ونقصان القيمة'!C15","v":0}]
[" رابعــــاً : تحديد بدل نقصان القيمة "]
[]
[]
[null," مـن اجل تحديد نقصان قيمة المركبة لابـد مــن الأخــذ بعيــن الإعتبـار نــوع المركبــة وموديلهــا "]
[null,"والإضافات  المتوفرة فيها وحجم الطلب عليها في السوق المحلي والحالة العامة للمركبة قبل الحادث ."]
[]
[]
[null,"البيـــــــــــان ",null,null,null,null,null,"القيمة "]
[null,null,null,null,null,null,null,"فلس دينار "]
[null,"  أقدر القيمة السوقية للمركبة قبــــــل الحــــــــادث بــــــ",null,null,null,null,null,{"$f":"'العطل ونقصان القيمة'!F4","v":0}]
[null,"  أقدر القيمة السوقية للمركبة بعد الحادث وبعد الاصلاح بـ",null,null,null,null,null,{"$f":"'العطل ونقصان القيمة'!F5","v":0}]
[null,"  الفرق بين القيمة السوقية قبل الحادث وبعد الاصلاح بــ",null,null,null,null,null,{"$f":"'العطل ونقصان القيمة'!F7","v":0}]
[]
[{"$f":"'العطل ونقصان القيمة'!B18","v":0}]
[null,{"$f":"'العطل ونقصان القيمة'!C18","v":0}]
[null,{"$f":"'العطل ونقصان القيمة'!C19","v":0}]
[null,{"$f":"'العطل ونقصان القيمة'!C20","v":0}]
[null,{"$f":"'العطل ونقصان القيمة'!C21","v":0}]
[null,{"$f":"'العطل ونقصان القيمة'!C22","v":0}]
[]
[]
["عمان -إِشارةالرابية بجانب فندق ديز إن-تلفاكس :(06/5504053)تلفون :(06/5504054)موبايل:(0795575439)"]
["Amman - AL Rabyah Traffic - Dayes In Hotel   * Telfax: 06 550 40 53 Tel :06 550 40 54 Mobile:079 557 54 39"]
[]
["    مؤسسة العقاب لتسوية الخسائر ",null,null,null,null,null,"AL - EQAB EAST "]
[" معاين ومسوي خسائر - مرخص ",null,null,null,null,null,"Loss Adjuster by the Insurance expert"]
[{"$f":"A97","v":"التاريــــــخ:-"},{"$f":"B97","v":"00:00:00"},null,null,null,null,null,{"$f":"H97","v":"تقرير رقم :- "},{"$f":"I97","v":0}]
[]
[]
["خامساً: تحديد بدل فوات المنفعة "]
[]
[null,"تبين أنهـا بحاجة لمدة إصلاح فعلية ",null,null,{"$f":"B157","v":0},{"$f":"E29","v":0}]
[null,"أقــــدر المـثـل اليومي للمركبــة بـ",null,null,{"$f":"D157","v":0},{"$f":"D156","v":0}]
[]
["إستناداً إلى ماورد أعلاه فإن بدل فوات المنفعة تكون ناتج ضرب عدد أيام التعطيل مضروبا في قيمة المثل اليومي . "]
[]
[null,{"$f":"'العطل ونقصان القيمة'!M4","v":0},{"$f":"التقرير!F172","v":"X"},{"$f":"'العطل ونقصان القيمة'!M5","v":0},"=",{"$f":"'العطل ونقصان القيمة'!M6","v":0},"دينار "]
[null,{"$f":"'العطل ونقصان القيمة'!L4","v":0},null,{"$f":"'العطل ونقصان القيمة'!L5","v":0}]
[]
[]
[" سادساً : إجمالي تكلفة الحادث"]
[]
[null,"البـيــــــــــان ",null,null,null,null,null,"القيمـــة"]
[null,null,null,null,null,null,null,"فلس","دينار"]
[null,"  أقدر بدل نقصان القيمة بــ",null,null,null,null,null,{"$f":"'العطل ونقصان القيمة'!F7","v":0}]
[null,"  أقدر بدل فوات المنفعة بـــ",null,null,{"$f":"B156","v":0},"X",{"$f":"D156","v":0},{"$f":"'العطل ونقصان القيمة'!M6","v":0}]
[null,null,null,null,{"$f":"B157","v":0},null,{"$f":"D157","v":0}]
[null,"أقدر اجمالــــــي تكلفة الحادث  بـــ",null,null,null,null,null,{"$f":"'العطل ونقصان القيمة'!L16","v":0}]
[null,{"$f":"Cur(H167,\"دينار أردني\",\"فلس\")","v":"صفر"}]
[]
[]
[null,"أتمنى أن أكون قـد وفقت في أداء المهمة الموكلة لي بكل أمانة وإخلاص ."]
[null,"وتفضلوا بقبول فائق الإحترام والتقدير ,,,,"]
[]
[]
[null,null,null,null,null,null,null,"معاين ومسوي خسائر"]
[null,null,null,null,null,null,null,"محمد أحمد عبد الله العوامله "]
[]
[]
[]
[]
[]
[]
[]
[]
[]
["عمان -إِشارةالرابية بجانب فندق ديز إن-تلفاكس :(06/5504053)تلفون :(06/5504054)موبايل:(0795575439)"]
["Amman - AL Rabyah Traffic - Dayes In Hotel   * Telfax: 06 550 40 53 Tel :06 550 40 54 Mobile:079 557 54 39"]
[]
[]
["    مؤسسة العقاب لتسوية الخسائر ",null,null,null,null,null,"AL - EQAB EAST "]
[" معاين ومسوي خسائر - مرخص ",null,null,null,null,null,"Loss Adjuster by the Insurance expert"]
[]
[]
[]
[]
[]
[]
[]
[]
[]
[]
[]
[]
[]
[]
[]
[]
[]
[]
[]
[]
[]
[]
[]
[]
[]
[]
[]
[]
[]
[]
[]
[]
[]
[]
[]
[]
[]
[]
[]
[]
[]
[]
[]
["عمان -إِشارةالرابية بجانب فندق ديز إن-تلفاكس :(06/5504053)تلفون :(06/5504054)موبايل:(0795575439)"]
["Amman - AL Rabyah Traffic - Dayes In Hotel   * Telfax: 06 550 40 53 Tel :06 550 40 54 Mobile:079 557 54 39"]
[]
["    مؤسسة العقاب لتسوية الخسائر ",null,null,null,null,null,"AL - EQAB EAST "]
[" معاين ومسوي خسائر - مرخص ",null,null,null,null,null,"Loss Adjuster by the Insurance expert"]
[]
[]
[]
[]
[]
[]
[]
[]
[]
[]
[]
[]
[]
[]
[]
[]
[]
[]
[]
[]
[]
[]
[]
[]
[]
[]
[]
[]
[]
[]
[]
[]
[]
[]
[]
[]
[]
[]
[]
[]
[]
[]
[]
[]
[]
[]
[]
["عمان -إِشارةالرابية بجانب فندق ديز إن-تلفاكس :(06/5504053)تلفون :(06/5504054)موبايل:(0795575439)"]
["Amman - AL Rabyah Traffic - Dayes In Hotel   * Telfax: 06 550 40 53 Tel :06 550 40 54 Mobile:079 557 54 39"]
[]
["    مؤسسة العقاب لتسوية الخسائر ",null,null,null,null,null,"AL - EQAB EAST "]
[" معاين ومسوي خسائر - مرخص ",null,null,null,null,null,"Loss Adjuster by the Insurance expert"]
[]
[]
[]
[]
[]
[]
[]
[]
[]
[]
[]
[]
[]
[]
[]
[]
[]
[]
[]
[]
[]
[]
[]
[]
[]
[]
[]
[]
[]
[]
[]
[]
[]
[]
[]
[]
[]
[]
[]
[]
[]
[]
[]
[]
[]
[]
[]
["عمان -إِشارةالرابية بجانب فندق ديز إن-تلفاكس :(06/5504053)تلفون :(06/5504054)موبايل:(0795575439)"]
["Amman - AL Rabyah Traffic - Dayes In Hotel   * Telfax: 06 550 40 53 Tel :06 550 40 54 Mobile:079 557 54 39"]

{"sheet":"نقصان وعطل","index":11,"n_rows":339,"n_cols":9,"rows_kept":339,"cut":false,"hidden":false,"merged":[[134,1,134,4],[135,1,135,4],[136,1,136,4],[137,1,137,4],[129,1,129,6],[111,3,111,6],[112,3,112,6],[113,3,113,6],[103,3,103,6],[120,0,120,9],[114,1,114,2],[115,1,115,4],[116,1,116,4],[117,1,117,4],[118,1,118,4],[104,3,104,6],[105,3,105,6],[106,3,106,6],[107,3,107,6],[129,7,129,8],[130,1,130,6],[130,7,130,8],[131,1,131,6],[131,7,131,8],[142,0,142,9],[141,0,141,9],[171,1,171,8],[175,7,175,9],[176,7,176,9],[146,1,146,2],[154,0,154,9],[166,1,166,6],[166,7,167,8],[167,1,167,6],[169,1,169,8],[170,1,170,8],[163,7,163,8],[164,1,165,3],[164,5,165,5],[164,7,165,8],[159,0,159,9],[161,1,162,6],[161,7,161,8],[123,1,123,9],[124,1,124,9],[127,1,128,6],[127,7,127,8],[128,7,128,8],[109,3,109,6],[110,3,110,6],[108,3,108,6],[119,1,119,4],[97,1,97,2],[72,3,72,5],[74,2,74,8],[77,0,77,9],[79,1,79,2],[79,3,79,8],[96,0,96,2],[96,6,96,9],[82,1,82,3],[83,1,83,3],[84,1,84,3],[85,1,85,3],[86,1,86,3],[68,2,68,4],[68,6,68,8],[69,2,69,4],[69,6,69,8],[71,1,71,8],[92,0,92,9],[93,0,93,9],[95,0,95,2],[95,6,95,9],[80,1,80,2],[80,3,80,8],[338,0,338,9],[236,0,236,2],[236,6,236,9],[237,0,237,2],[237,6,237,9],[285,0,285,9],[286,0,286,9],[288,0,288,2],[288,6,288,9],[289,0,289,2],[289,6,289,9],[337,0,337,9],[234,0,234,9],[144,0,144,2],[144,6,144,9],[145,0,145,2],[145,6,145,9],[187,0,187,9],[188,0,188,9],[190,0,190,2],[190,6,190,9],[191,0,191,2],[191,6,191,9],[233,0,233,9],[156,2,157,2],[156,4,157,4],[156,5,157,5],[156,6,157,6],[149,0,149,9],[151,1,151,3],[152,1,152,3],[60,7,60,8],[61,2,61,4],[61,6,61,8],[53,6,53,7],[53,8,53,9],[56,4,56,5],[56,8,56,9],[59,3,59,4],[59,5,59,6],[53,1,53,3],[1,0,1,2],[1,6,1,9],[2,0,2,2],[2,6,2,9],[45,0,45,9],[10,8,10,9],[23,0,23,8],[21,0,21,9],[22,0,22,9],[19,0,19,9],[20,0,20,6],[20,7,20,8],[29,7,30,8],[24,0,24,9],[25,0,25,9],[26,1,27,6],[26,7,26,8],[11,8,11,9],[13,3,13,4],[13,5,13,9],[14,2,14,3],[38,7,38,9],[3,1,3,2],[5,1,5,3],[5,6,5,7],[5,8,5,9],[6,6,6,7],[6,8,6,9],[34,1,34,8],[35,1,35,8],[14,5,14,6],[9,1,9,5],[10,0,10,1],[10,4,10,5],[11,0,11,1],[11,4,11,5],[6,1,6,3],[37,7,37,9],[31,7,32,8],[31,1,31,6],[32,1,32,6],[33,1,33,8],[28,7,28,8],[29,1,30,3],[29,5,30,5],[15,2,15,3],[15,5,15,6],[16,2,16,3],[16,5,16,7],[16,8,16,9],[18,0,18,9],[36,1,36,8],[46,0,46,9],[48,0,48,2],[48,6,48,9],[49,0,49,2],[49,6,49,9],[66,2,66,4],[66,6,66,8],[67,2,67,4],[67,6,67,8],[62,2,62,4],[62,6,62,8],[63,2,63,4],[63,6,63,8],[64,2,64,4],[64,6,64,8],[65,2,65,4],[65,6,65,8],[50,1,50,2],[52,1,52,3],[52,6,52,7],[52,8,52,9],[60,1,60,2],[60,3,60,4],[60,5,60,6]]}
[]
["    مؤسسة العقاب لتسوية الخسائر ",null,null,null,null,null,"AL - EQAB EAST "]
[" معاين ومسوي خسائر - مرخص ",null,null,null,null,null,"Loss Adjuster by the Insurance expert"]
["التاريــــــخ:-",{"$f":"reportinfo!D4","v":"00:00:00"},null,null,null,null,null,"تقرير رقم :- ",{"$f":"reportinfo!D3","v":0}]
[]
["الســــادة / ",{"$f":"reportinfo!D5","v":0},null,null,"المحترمين ",null,"إدعائكم رقم",null,{"$f":"reportinfo!D6","v":0}]
[{"$f":"الفاتورة!G13","v":"السيد"},{"$f":"المتضررة!G5","v":0},null,null,{"$f":"الفاتورة!L13","v":0},null,{"$f":"reportinfo!B8","v":0},null,{"$f":"reportinfo!D8","v":0}]
[null,"تحيـة طيبـة وبعــد ,,,"]
[]
[null," الموضوع / تسوية أضرار المركبة ذات المواصفات التالية :-"]
["رقم المركبة ",null,"النوع","الصنف","الشكل و الاستعمال",null,"اللون ","الموديل","رقم الشصي"]
[{"$f":"المتضررة!G4","v":0},null,{"$f":"المتضررة!G7","v":0},{"$f":"المتضررة!G8","v":0},{"$f":"المتضررة!G12","v":0},null,{"$f":"المتضررة!G10","v":0},{"$f":"المتضررة!G9","v":0},{"$f":"المتضررة!G11","v":0}]
[]
["جـراء الحادث الـذي وقـع بتـاريــــخ",null,null,{"$f":"'معلومات الحادث '!H6","v":"00:00:00"},null,"مع المركبة المتسببة في الحادث ذات المواصفات التالية  :-"]
[null,null,"رقم المركبة ",null,"النــوع","الشكل والإستعمال "]
[null,null,{"$f":"مسبب!H4","v":0},null,{"$f":"مسبب!H7","v":0},{"$f":"مسبب!H8","v":0}]
["والمؤمنة لديكم بالعقد رقم",null,{"$f":"مسبب!H9","v":0},null,"للـفتــرة ",{"$f":"مسبب!H10","v":0},null,null,{"$f":"مسبب!H11","v":0}]
[]
["بالإشارة الى الموضوع اعلاه وبناءاً على الإتفاق الذي تم بينكم وبين مالك المركبة المتضررة لإجراء الخبرة الفنية  "]
["على المركبة ذات المواصفات اعلاه ."]
["  لقــد قمت بالكشـف الحسي والفني علـى المركبـة مـــوضـوع هـذا التقــرير بتاريخ",null,null,null,null,null,null,{"$f":"المتضررة!G21","v":"00:00:00"}]
["حيث شاهدت المركبة بعد الحادث وبعد عملية الإصلاح وبعد تحليل ما ورد في تقرير الشرطة  ومطابقة نقاط "]
["الضررمع الواقع الفعلي  وبالرجوع للصورة العائدة للمركبة قبل الإصلاح ومراجعة الكشف المنظم من قبلكــم "]
[{"$f":"'العطل ونقصان القيمة'!F17","v":0}]
["بنـاءاً علـى ذلك قمـت بتقديـر الأضرار اللاحقـة بالمـركبة مـن حيـث  نقصـان القيمة وبدل فوات المنفعة . "]
["وأنني أقــدم لكم خلاصة هذا التقرير :-"]
[null,"البـيــــــــــان ",null,null,null,null,null,"القيمـــة"]
[null,null,null,null,null,null,null,"فلس","دينار"]
[null,"  أقدر بدل نقصان القيمة بــ",null,null,null,null,null,{"$f":"'العطل ونقصان القيمة'!F7","v":0}]
[null,"  أقدر بدل فوات المنفعة بـــ",null,null,{"$f":"'العطل ونقصان القيمة'!M4","v":0},"X",{"$f":"'العطل ونقصان القيمة'!M5","v":0},{"$f":"'العطل ونقصان القيمة'!M6","v":0}]
[null,null,null,null,{"$f":"'العطل ونقصان القيمة'!L4","v":0},null,{"$f":"'العطل ونقصان القيمة'!L5","v":0}]
[null,"أقدر اجمالــــــي تكلفة الحادث  بـــ",null,null,null,null,null,{"$f":"'العطل ونقصان القيمة'!L16","v":0}]
[null,{"$f":"Cur(H32,\"دينارأردني\",\"فلس\")","v":"صفر"}]
[{"$f":"reportinfo!B10","v":0},{"$f":"reportinfo!D10","v":0}]
[null," تم تحرير هذا التقرير بما يتوافق مع أسس وقرارت هيئة التأمين لتسوية الخسائر"]
[null,"أتمنى أن أكون قـد وفقت في أداء المهمة الموكلة لي بكل أمانة وإخلاص ."]
[null,"وتفضلوا بقبول فائق الإحترام والتقدير ,,,,"]
[null,null,null,null,null,null,null,"معاين ومسوي خسائر"]
[null,null,null,null,null,null,null,"محمد أحمد عبد الله العوامله "]
[]
[]
[]
[]
[]
[]
["عمان -إِشارةالرابية بجانب فندق ديز إن-تلفاكس :(06/5504053)تلفون :(06/5504054)موبايل:(0795575439)"]
["Amman - AL Rabyah Traffic - Dayes In Hotel   * Telfax: 06 550 40 53 Tel :06 550 40 54 Mobile:079 557 54 39"]
[]
["    مؤسسة العقاب لتسوية الخسائر ",null,null,null,null,null,"AL - EQAB EAST "]
[" معاين ومسوي خسائر - مرخص ",null,null,null,null,null,"Loss Adjuster by the Insurance expert"]
["التاريــــــخ:-",{"$f":"B4","v":"00:00:00"},null,null,null,null,null,"تقرير رقم :- ",{"$f":"I4","v":0}]
[]
[" الســــادة /",{"$f":"reportinfo!D5","v":0},null,null,"المحترمين ",null,"إدعائكم رقم",null,{"$f":"reportinfo!D6","v":0}]
[{"$f":"A7","v":"السيد"},{"$f":"B7","v":0},null,null,{"$f":"E7","v":0},null,{"$f":"reportinfo!B8","v":0},null,{"$f":"reportinfo!D8","v":0}]
[null,"تحيـة طيبـة وبعــــد,,,"]
[]
[" الموضوع : تسوية وتقديرأضرارالمركبة رقم ",null,null,null,{"$f":"A12","v":0},null,"نـــــــوع",{"$f":"C12","v":0},{"$f":"D12","v":0}]
[]
["أولاً:وقائع الحادث حسب ضبط الشرطة الصادرمن مديرية شرطة ",null,null,null,null,{"$f":"'معلومات الحادث '!H10","v":0},"مركز أمن ",{"$f":"'معلومات الحادث '!H14","v":0}]
[null,null,null,"رقم تسلسل الكروكي",null,{"$f":"'معلومات الحادث '!H4","v":0}]
[null,"رقم المركبة في الكروكي",null,{"$f":"المتضررة!G17","v":0},null,"رقم المركبة في الكروكي",null,{"$f":"مسبب!H12","v":0}]
[null,"رقم السيارة ",{"$f":"المتضررة!G4","v":0},null,null,"رقم السيارة ",{"$f":"مسبب!H4","v":0}]
[null,"المالــك ",{"$f":"المتضررة!G5","v":0},null,null,"المالــك ",{"$f":"مسبب!H5","v":0}]
[null,"السـائـق",{"$f":"المتضررة!G6","v":0},null,null,"السـائـق",{"$f":"مسبب!H6","v":0}]
[null,"نــوع ",{"$f":"المتضررة!G7","v":0},null,null,"نــوع ",{"$f":"مسبب!H7","v":0}]
[null,"الاستعمـال ",{"$f":"المتضررة!G12","v":0},null,null,"الاستعمـال ",{"$f":"مسبب!H8","v":0}]
[null,"مؤمنة لدى ",{"$f":"المتضررة!G13","v":0},null,null,"مؤمنة لدى ",{"$f":"reportinfo!D5","v":0}]
[null,"رقم العقـد",{"$f":"المتضررة!G14","v":0},null,null,"رقم العقـد",{"$f":"مسبب!H9","v":0}]
[null,"مدة التأمين ",{"$f":"المتضررة!G15","v":0},null,null,"مدة التأمين ",{"$f":"مسبب!H10","v":0}]
[null,"الاخطاء ",{"$f":"المتضررة!G18","v":0},null,null,"الاخطاء ",{"$f":"مسبب!H13","v":0}]
[]
[null,"تفاصيل الحادث :-"]
[null,-1,"نتيجة ",{"$f":"مسبب!H13","v":0},null,null,"من قبل سائق المركبة رقم ",null,{"$f":"مسبب!H12","v":0}]
[null,null,"مما أدى إلى إصطدامها  بالمركبة رقم ",null,null,{"$f":"D61","v":0},"بالنقطة رقم ",{"$f":"'معلومات الحادث '!H12","v":0}]
[]
[null,-2,"نتائج الحادث ",{"$f":"'معلومات الحادث '!H16","v":0}]
[]
["ثانياَ :- نقاط ضرر المركبة موضوع هذا التقرير حسب تقرير الشرطة"]
[]
[null,"منقطة الكشـف ",null,{"$f":"المتضررة!G20","v":0}]
[null,"مناطق الضرر ",null,{"$f":"المتضررة!G19","v":0}]
[]
[{"$f":"المتضررة!D23","v":0},{"$f":"المتضررة!D24","v":0}]
[null,{"$f":"المتضررة!D25","v":0}]
[null,{"$f":"المتضررة!D26","v":0}]
[null,{"$f":"المتضررة!D27","v":0}]
[null,{"$f":"المتضررة!D28","v":0}]
[]
[]
[]
[]
[]
["عمان -إِشارةالرابية بجانب فندق ديز إن-تلفاكس :(06/5504053)تلفون :(06/5504054)موبايل:(0795575439)"]
["Amman - AL Rabyah Traffic - Dayes In Hotel   * Telfax: 06 550 40 53 Tel :06 550 40 54 Mobile:079 557 54 39"]
[]
["    مؤسسة العقاب لتسوية الخسائر ",null,null,null,null,null,"AL - EQAB EAST "]
[" معاين ومسوي خسائر - مرخص ",null,null,null,null,null,"Loss Adjuster by the Insurance expert"]
[{"$f":"A51","v":"التاريــــــخ:-"},{"$f":"B51","v":"00:00:00"},null,null,null,null,null,"تقرير رقم :- ",{"$f":"reportinfo!D3","v":0}]
[]
[]
[]
[" ثالثــــــاً :  تحديــــد الإصلاحــــــات التـــــي تمــــت علــى المـركبـــة "]
[]
[null,null,"الرقم ","البيـــــــــــــان"]
[null,null,1,{"$f":"'الاصلاحات '!B4","v":0}]
[null,null,2,{"$f":"'الاصلاحات '!B5","v":0}]
[null,null,3,{"$f":"'الاصلاحات '!B6","v":0}]
[null,null,4,{"$f":"'الاصلاحات '!B7","v":0}]
[null,null,5,{"$f":"'الاصلاحات '!B8","v":0}]
[null,null,6,{"$f":"'الاصلاحات '!B9","v":0}]
[null,null,7,{"$f":"'الاصلاحات '!B10","v":0}]
[null,null,8,{"$f":"'الاصلاحات '!B11","v":0}]
[null,null,9,{"$f":"'الاصلاحات '!B12","v":0}]
[null,null,10,{"$f":"'الاصلاحات '!B13","v":0}]
[null,{"$f":"'العطل ونقصان القيمة'!C10","v":0}]
[null,{"$f":"'العطل ونقصان القيمة'!C11","v":0}]
[null,{"$f":"'العطل ونقصان القيمة'!C12","v":0}]
[null,{"$f":"'العطل ونقصان القيمة'!C13","v":0}]
[null,{"$f":"'العطل ونقصان القيمة'!C14","v":0}]
[null,{"$f":"'العطل ونقصان القيمة'!C15","v":0}]
[" رابعــــاً : تحديد بدل نقصان القيمة "]
[]
[]
[null," مـن اجل تحديد نقصان قيمة المركبة لابـد مــن الأخــذ بعيــن الإعتبـار نــوع المركبــة وموديلهــا "]
[null,"والإضافات  المتوفرة فيها وحجم الطلب عليها في السوق المحلي والحالة العامة للمركبة قبل الحادث ."]
[]
[]
[null,"البيـــــــــــان ",null,null,null,null,null,"القيمة "]
[null,null,null,null,null,null,null,"فلس دينار "]
[null,"  أقدر القيمة السوقية للمركبة قبــــــل الحــــــــادث بــــــ",null,null,null,null,null,{"$f":"'العطل ونقصان القيمة'!F4","v":0}]
[null,"  أقدر القيمة السوقية للمركبة بعد الحادث وبعد الاصلاح بـ",null,null,null,null,null,{"$f":"'العطل ونقصان القيمة'!F5","v":0}]
[null,"  الفرق بين القيمة السوقية قبل الحادث وبعد الاصلاح بــ",null,null,null,null,null,{"$f":"'العطل ونقصان القيمة'!F7","v":0}]
[]
[{"$f":"'العطل ونقصان القيمة'!B18","v":0}]
[null,{"$f":"'العطل ونقصان القيمة'!C18","v":0}]
[null,{"$f":"'العطل ونقصان القيمة'!C19","v":0}]
[null,{"$f":"'العطل ونقصان القيمة'!C20","v":0}]
[null,{"$f":"'العطل ونقصان القيمة'!C21","v":0}]
[]
[]
[]
["عمان -إِشارةالرابية بجانب فندق ديز إن-تلفاكس :(06/5504053)تلفون :(06/5504054)موبايل:(0795575439)"]
["Amman - AL Rabyah Traffic - Dayes In Hotel   * Telfax: 06 550 40 53 Tel :06 550 40 54 Mobile:079 557 54 39"]
[]
["    مؤسسة العقاب لتسوية الخسائر ",null,null,null,null,null,"AL - EQAB EAST "]
[" معاين ومسوي خسائر - مرخص ",null,null,null,null,null,"Loss Adjuster by the Insurance expert"]
[{"$f":"A98","v":"التاريــــــخ:-"},{"$f":"B98","v":"00:00:00"},null,null,null,null,null,{"$f":"H98","v":"تقرير رقم :- "},{"$f":"I98","v":0}]
[]
[]
["خامساً: تحديد بدل فوات المنفعة "]
[]
[null,"تبين أنهـا بحاجة لمدة إصلاح فعلية ",null,null,{"$f":"'العطل ونقصان القيمة'!L4","v":0},{"$f":"'العطل ونقصان القيمة'!M4","v":0}]
[null,"أقــــدر المـثـل اليومي للمركبــة بـ",null,null,{"$f":"'العطل ونقصان القيمة'!L5","v":0},{"$f":"'العطل ونقصان القيمة'!M5","v":0}]
[]
["إستناداً إلى ماورد أعلاه فإن بدل فوات المنفعة تكون ناتج ضرب عدد أيام التعطيل مضروبا في قيمة المثل اليومي . "]
[]
[null,{"$f":"F152","v":0},{"$f":"التقرير!F172","v":"X"},{"$f":"F153","v":0},"=",{"$f":"'العطل ونقصان القيمة'!M6","v":0},"دينار "]
[null,{"$f":"E152","v":0},null,{"$f":"E153","v":0}]
[]
[" سادساً : إجمالي تكلفة الحادث"]
[]
[null,"البـيــــــــــان ",null,null,null,null,null,"القيمـــة"]
[null,null,null,null,null,null,null,"فلس","دينار"]
[null,"  أقدر بدل نقصان القيمة بــ",null,null,null,null,null,{"$f":"'العطل ونقصان القيمة'!F7","v":0}]
[null,"  أقدر بدل فوات المنفعة بـــ",null,null,{"$f":"B157","v":0},"X",{"$f":"D157","v":0},{"$f":"'العطل ونقصان القيمة'!M6","v":0}]
[null,null,null,null,{"$f":"B158","v":0},null,{"$f":"D158","v":0}]
[null,"أقدر اجمالــــــي تكلفة الحادث  بـــ",null,null,null,null,null,{"$f":"'العطل ونقصان القيمة'!L16","v":0}]
[null,{"$f":"Cur(H167,\"دينار أردني\",\"فلس\")","v":"صفر"}]
[]
[null," تم تحرير هذا التقرير بما يتوافق مع أسس وقرارت هيئة التأمين لتسوية الخسائر"]
[null,"أتمنى أن أكون قـد وفقت في أداء المهمة الموكلة لي بكل أمانة وإخلاص ."]
[null,"وتفضلوا بقبول فائق الإحترام والتقدير ,,,,"]
[]
[]
[]
[null,null,null,null,null,null,null,"معاين ومسوي خسائر"]
[null,null,null,null,null,null,null,"محمد أحمد عبد الله العوامله "]
[]
[]
[]
[]
[]
[]
[]
[]
[]
[]
["عمان -إِشارةالرابية بجانب فندق ديز إن-تلفاكس :(06/5504053)تلفون :(06/5504054)موبايل:(0795575439)"]
["Amman - AL Rabyah Traffic - Dayes In Hotel   * Telfax: 06 550 40 53 Tel :06 550 40 54 Mobile:079 557 54 39"]
[]
["    مؤسسة العقاب لتسوية الخسائر ",null,null,null,null,null,"AL - EQAB EAST "]
[" معاين ومسوي خسائر - مرخص ",null,null,null,null,null,"Loss Adjuster by the Insurance expert"]
[]
[]
[]
[]
[]
[]
[]
[]
[]
[]
[]
[]
[]
[]
[]
[]
[]
[]
[]
[]
[]
[]
[]
[]
[]
[]
[]
[]
[]
[]
[]
[]
[]
[]
[]
[]
[]
[]
[]
[]
[]
["عمان -إِشارةالرابية بجانب فندق ديز إن-تلفاكس :(06/5504053)تلفون :(06/5504054)موبايل:(0795575439)"]
["Amman - AL Rabyah Traffic - Dayes In Hotel   * Telfax: 06 550 40 53 Tel :06 550 40 54 Mobile:079 557 54 39"]
[]
["    مؤسسة العقاب لتسوية الخسائر ",null,null,null,null,null,"AL - EQAB EAST "]
[" معاين ومسوي خسائر - مرخص ",null,null,null,null,null,"Loss Adjuster by the Insurance expert"]
[]
[]
[]
[]
[]
[]
[]
[]
[]
[]
[]
[]
[]
[]
[]
[]
[]
[]
[]
[]
[]
[]
[]
[]
[]
[]
[]
[]
[]
[]
[]
[]
[]
[]
[]
[]
[]
[]
[]
[]
[]
[]
[]
[]
[]
[]
[]
["عمان -إِشارةالرابية بجانب فندق ديز إن-تلفاكس :(06/5504053)تلفون :(06/5504054)موبايل:(0795575439)"]
["Amman - AL Rabyah Traffic - Dayes In Hotel   * Telfax: 06 550 40 53 Tel :06 550 40 54 Mobile:079 557 54 39"]
[]
["    مؤسسة العقاب لتسوية الخسائر ",null,null,null,null,null,"AL - EQAB EAST "]
[" معاين ومسوي خسائر - مرخص ",null,null,null,null,null,"Loss Adjuster by the Insurance expert"]
[]
[]
[]
[]
[]
[]
[]
[]
[]
[]
[]
[]
[]
[]
[]
[]
[]
[]
[]
[]
[]
[]
[]
[]
[]
[]
[]
[]
[]
[]
[]
[]
[]
[]
[]
[]
[]
[]
[]
[]
[]
[]
[]
[]
[]
[]
[]
["عمان -إِشارةالرابية بجانب فندق ديز إن-تلفاكس :(06/5504053)تلفون :(06/5504054)موبايل:(0795575439)"]
["Amman - AL Rabyah Traffic - Dayes In Hotel   * Telfax: 06 550 40 53 Tel :06 550 40 54 Mobile:079 557 54 39"]

{"sheet":"قضية عادي","index":12,"n_rows":233,"n_cols":11,"rows_kept":233,"cut":false,"hidden":false,"merged":[[162,0,162,9],[161,1,161,3],[160,1,160,3],[157,1,157,3],[158,1,158,3],[157,4,157,6],[158,4,158,6],[145,1,145,2],[100,0,100,1],[101,0,101,1],[102,0,102,1],[103,0,103,1],[104,0,104,1],[105,0,105,1],[106,0,106,1],[107,0,107,1],[108,0,108,1],[109,0,109,1],[110,0,110,1],[111,0,111,1],[112,0,112,1],[113,0,113,1],[114,0,114,1],[130,1,130,4],[131,1,131,4],[132,1,132,4],[133,1,133,4],[120,0,120,1],[121,0,121,1],[141,0,141,9],[140,0,140,9],[178,7,178,9],[179,7,179,9],[173,1,173,6],[173,7,174,8],[174,1,174,6],[175,1,175,8],[176,1,176,8],[170,7,170,8],[171,1,172,3],[171,5,172,5],[171,7,172,8],[177,1,177,8],[169,7,169,8],[163,2,164,2],[163,4,164,4],[163,5,164,5],[163,6,164,6],[125,6,126,7],[125,8,126,9],[128,1,128,2],[129,1,129,4],[115,0,115,1],[116,0,116,1],[117,0,117,1],[125,0,125,1],[126,0,126,1],[126,2,126,4],[122,6,122,8],[123,6,123,8],[124,6,124,8],[122,0,122,1],[123,0,123,1],[124,0,124,1],[119,6,119,8],[120,6,120,8],[121,6,121,8],[119,0,119,1],[116,6,116,8],[117,6,117,8],[118,6,118,8],[118,0,118,1],[113,6,113,8],[114,6,114,8],[115,6,115,8],[110,6,110,8],[111,6,111,8],[112,6,112,8],[107,6,107,8],[108,6,108,8],[109,6,109,8],[104,6,104,8],[105,6,105,8],[106,6,106,8],[101,6,101,8],[102,6,102,8],[103,6,103,8],[94,1,94,2],[100,6,100,8],[99,0,99,1],[98,0,98,4],[83,1,83,3],[84,1,84,3],[79,1,79,2],[79,3,79,8],[96,0,96,9],[98,5,99,5],[98,6,98,9],[99,6,99,8],[80,1,80,3],[81,1,81,3],[82,1,82,3],[71,3,71,5],[73,2,73,8],[76,0,76,9],[78,1,78,2],[78,3,78,8],[67,2,67,4],[67,6,67,8],[68,2,68,4],[68,6,68,8],[70,1,70,8],[64,2,64,4],[64,6,64,8],[65,2,65,4],[65,6,65,8],[66,2,66,4],[66,6,66,8],[61,2,61,4],[61,6,61,8],[62,2,62,4],[62,6,62,8],[63,2,63,4],[63,6,63,8],[14,5,14,6],[15,2,15,3],[15,5,15,7],[25,7,25,8],[26,7,26,8],[27,7,27,8],[28,1,29,3],[28,5,29,5],[28,7,29,8],[20,0,20,9],[21,0,21,9],[22,0,22,9],[23,1,24,6],[23,7,23,8],[232,0,232,9],[143,0,143,2],[143,6,143,9],[144,0,144,2],[144,6,144,9],[185,0,185,9],[186,0,186,9],[19,1,19,9],[15,8,15,9],[16,0,16,9],[17,0,17,9],[15,0,15,1],[18,0,18,9],[34,1,34,8],[35,1,35,8],[36,7,36,9],[37,7,37,9],[30,7,30,8],[31,1,31,6],[31,7,32,8],[32,1,32,6],[33,1,33,8],[59,1,59,2],[59,3,59,4],[336,0,336,9],[234,0,234,2],[234,6,234,9],[235,0,235,2],[235,6,235,9],[283,0,283,9],[284,0,284,9],[286,0,286,2],[286,6,286,9],[287,0,287,2],[287,6,287,9],[335,0,335,9],[188,0,188,2],[188,6,188,9],[189,0,189,2],[189,6,189,9],[231,0,231,9],[147,0,147,9],[148,1,148,9],[149,1,149,9],[150,1,151,6],[154,1,154,6],[154,7,154,8],[155,1,155,6],[155,7,156,8],[159,0,159,9],[150,7,150,8],[151,7,151,8],[152,1,152,6],[152,7,152,8],[153,1,153,6],[153,7,153,8],[165,0,165,9],[166,1,167,6],[166,7,166,8],[168,7,168,8],[47,0,47,2],[47,6,47,9],[48,0,48,2],[48,6,48,9],[89,0,89,9],[90,0,90,9],[92,0,92,2],[92,6,92,9],[93,0,93,2],[93,6,93,9],[49,1,49,2],[51,1,51,3],[51,6,51,7],[51,8,51,9],[59,5,59,6],[59,7,59,8],[60,2,60,4],[60,6,60,8],[52,6,52,7],[52,8,52,9],[55,4,55,5],[55,8,55,9],[58,3,58,4],[58,5,58,6],[45,0,45,9],[1,0,1,2],[1,6,1,9],[2,0,2,2],[2,6,2,9],[44,0,44,9],[3,1,3,2],[5,1,5,3],[5,6,5,7],[5,8,5,9],[6,6,6,7],[6,8,6,9],[8,1,8,5],[9,0,9,1],[9,4,9,5],[9,8,9,9],[10,0,10,1],[10,4,10,5],[10,8,10,9],[12,3,12,4],[12,5,12,9],[13,2,13,3],[13,5,13,6],[14,2,14,3]]}
[]
["    مؤسسة العقاب لتسوية الخسائر ",null,null,null,null,null,"AL - EQAB EAST "]
[" معاين ومسوي خسائر - مرخص ",null,null,null,null,null,"Loss Adjuster by the Insurance expert"]
["التاريــــــخ:-",{"$f":"reportinfo!D4","v":"00:00:00"},null,null,null,null,null,"تقرير رقم :- ",{"$f":"reportinfo!D3","v":0}]
[]
["الســــادة / ",{"$f":"reportinfo!D5","v":0},null,null,"المحترمين ",null,"إدعائكم رقم",null,{"$f":"reportinfo!D6","v":0}]
[null,"تحيـة طيبـة وبعــد ,,,",null,null,null,null,{"$f":"reportinfo!B8","v":0},null,{"$f":"reportinfo!D8","v":0}]
[]
[null," الموضوع / تقدير أضرار المركبة ذات المواصفات التالية :-"]
["رقم المركبة ",null,"النوع","الصنف","الشكل و الاستعمال",null,"اللون ","الموديل","رقم الشصي"]
[{"$f":"المتضررة!G4","v":0},null,{"$f":"المتضررة!G7","v":0},{"$f":"المتضررة!G8","v":0},{"$f":"المتضررة!G12","v":0},null,{"$f":"المتضررة!G10","v":0},{"$f":"المتضررة!G9","v":0},{"$f":"المتضررة!G11","v":0}]
[]
["جـراء الحادث الـذي وقـع بتـاريــخ",null,null,{"$f":"'معلومات الحادث '!H6","v":"00:00:00"},null,"مع المركبة المتسببة في الحادث ذات المواصفات التالية  :-"]
[null,null,"رقم المركبة ",null,"النــوع","الشكل والإستعمال "]
[null,null,{"$f":"مسبب!H4","v":0},null,{"$f":"مسبب!H7","v":0},{"$f":"مسبب!H8","v":0}]
["والمؤمنة لديكم بالعقد رقم",null,{"$f":"مسبب!H9","v":0},null,"للـفتــرة ",{"$f":"مسبب!H10","v":0},null,null,{"$f":"مسبب!H11","v":0}]
["بالإشارة الى الموضوع اعلاه وبناءً على تكليفكم لي  بأجراء الخبرة الفنية على المركبة  المتضرره موضوع هذا التقرير, "]
["معتمداً على صور المركبة لحظة وقوع الحادث ومطابقتها مع نقاط الضرر فـي المخطـط المـروري. "]
["بناءً عليه قمت بدراسة المخطط المروري وصور الحادث حيث تم تحديد الاضرار ومطابقتها مع نقاط الضرر الواقعه على"]
[" المركبة , ",{"$f":"reportinfo!D13","v":0}]
["بناءاً على ذلك قمت بتقديرالأضراراللاحقة بالمركبة من حيـث الأجوروالقطع التبديلية وبدل نقصان القيمة وبدل فوات "]
["المنفعة."]
["وأنني أقــدم لكم خلاصة هذا التقرير :-"]
[null,"البـيــــــــــان ",null,null,null,null,null,"القيمـــة"]
[null,null,null,null,null,null,null,"فلس","دينار"]
[null,"  أقدر ثمن القطع التبديلية بــ",null,null,null,null,null,{"$f":"'القطع '!F31","v":0}]
[null,"  أقــدر قـيمـة الأجــور   بـــ",null,null,null,null,null,{"$f":"'الاصلاحات '!E29","v":0}]
[null,"  أقدر بدل نقصان القيمة بــ",null,null,null,null,null,{"$f":"'العطل ونقصان القيمة'!F7","v":0}]
[null,"  أقدر بدل فوات المنفعة بـــ",null,null,{"$f":"'العطل ونقصان القيمة'!L4","v":0},"X",{"$f":"'العطل ونقصان القيمة'!L5","v":0},{"$f":"'العطل ونقصان القيمة'!M6","v":0}]
[null,null,null,null,{"$f":"'العطل ونقصان القيمة'!M4","v":0},null,{"$f":"'العطل ونقصان القيمة'!M5","v":0}]
[null,"  ونـــــــــــــــــــــــــــــش",null,null,null,null,null,{"$f":"'العطل ونقصان القيمة'!L15","v":0}]
[null,"أقدر اجمالــــــي تكلفة الحادث  بـــ",null,null,null,null,null,{"$f":"'العطل ونقصان القيمة'!L16","v":0}]
[null,{"$f":"Cur(H32,\"دينارأردني\",\"فلس\")","v":"صفر"}]
[{"$f":"reportinfo!B10","v":0},{"$f":"reportinfo!D10","v":0}]
[null,"أتمنى أن أكون قـد وفقت في أداء المهمة الموكلة لي بكل أمانة وإخلاص ."]
[null,"وتفضلوا بقبول فائق الإحترام والتقدير ,,,,"]
[null,null,null,null,null,null,null,"معاين ومسوي خسائر"]
[null,null,null,null,null,null,null,"محمد أحمد عبد الله العوامله "]
[]
[]
[]
[]
[]
[null,null,null,null,null,null,null,null,null,null,1]
["عمان -إِشارةالرابية بجانب فندق ديز إن-تلفاكس :(06/5504053)تلفون :(06/5504054)موبايل:(0795575439)"]
["Amman - AL Rabyah Traffic - Dayes In Hotel   * Telfax: 06 550 40 53 Tel :06 550 40 54 Mobile:079 557 54 39"]
[]
["    مؤسسة العقاب لتسوية الخسائر ",null,null,null,null,null,"AL - EQAB EAST "]
[" معاين ومسوي خسائر - مرخص ",null,null,null,null,null,"Loss Adjuster by the Insurance expert"]
["التاريــــــخ:-",{"$f":"B4","v":"00:00:00"},null,null,null,null,null,"تقرير رقم :- ",{"$f":"I4","v":0}]
[]
[" الســــادة /",{"$f":"reportinfo!D5","v":0},null,null,"المحترمين ",null,"إدعائكم رقم",null,{"$f":"reportinfo!D6","v":0}]
[null,null,null,null,null,null,{"$f":"reportinfo!B8","v":0},null,{"$f":"reportinfo!D8","v":0}]
[null,"تحيـة طيبـة وبعــــد,,,"]
[]
[" الموضوع : -  تقديرأضرارالمركبة رقـــم ",null,null,null,{"$f":"A11","v":0},null,"نـــــــوع",{"$f":"C11","v":0},{"$f":"D11","v":0}]
[]
["أولاً:وقائع الحادث حسب ضبط الشرطة الصادرمن مديرية شرطة ",null,null,null,null,{"$f":"'معلومات الحادث '!H10","v":0},"مركز أمن ",{"$f":"'معلومات الحادث '!H14","v":0}]
[null,null,null,"رقم تسلسل الكروكي",null,{"$f":"'معلومات الحادث '!H4","v":0}]
[null,"رقم المركبة في الكروكي",null,{"$f":"المتضررة!G17","v":0},null,"رقم المركبة في الكروكي",null,{"$f":"مسبب!H12","v":0}]
[null,"رقم السيارة ",{"$f":"المتضررة!G4","v":0},null,null,"رقم السيارة ",{"$f":"مسبب!H4","v":0}]
[null,"المالــك ",{"$f":"المتضررة!G5","v":0},null,null,"المالــك ",{"$f":"مسبب!H5","v":0}]
[null,"السـائـق",{"$f":"المتضررة!G6","v":0},null,null,"السـائـق",{"$f":"مسبب!H6","v":0}]
[null,"نــوع ",{"$f":"المتضررة!G7","v":0},null,null,"نــوع ",{"$f":"مسبب!H7","v":0}]
[null,"الاستعمـال ",{"$f":"المتضررة!G12","v":0},null,null,"الاستعمـال ",{"$f":"مسبب!H8","v":0}]
[null,"مؤمنة لدى ",{"$f":"المتضررة!G13","v":0},null,null,"مؤمنة لدى ",{"$f":"reportinfo!D5","v":0}]
[null,"رقم العقـد",{"$f":"المتضررة!G14","v":0},null,null,"رقم العقـد",{"$f":"مسبب!H9","v":0}]
[null,"مدة التأمين ",{"$f":"المتضررة!G15","v":0},null,null,"مدة التأمين ",{"$f":"مسبب!H10","v":0}]
[null,"الاخطاء ",{"$f":"المتضررة!G18","v":0},null,null,"الاخطاء ",{"$f":"مسبب!H13","v":0}]
[]
[null,"تفاصيل الحادث :-"]
[null,-1,"نتيجة ",{"$f":"مسبب!H13","v":0},null,null,"من قبل سائق المركبة رقم ",null,{"$f":"مسبب!H12","v":0}]
[null,null,"مما أدى إلى إصطدامها  بالمركبة رقم ",null,null,{"$f":"D60","v":0},"بالنقطة رقم ",{"$f":"'معلومات الحادث '!H12","v":0}]
[]
[null,-2,"نتائج الحادث ",{"$f":"'معلومات الحادث '!H16","v":0}]
[]
["ثانياَ :- نقاط ضرر المركبة موضوع هذا التقرير حسب تقرير الشرطة"]
[]
[null,"منقطة الكشـف ",null,{"$f":"المتضررة!G20","v":0}]
[null,"مناطق الضرر ",null,{"$f":"المتضررة!G19","v":0}]
[{"$f":"المتضررة!D23","v":0},{"$f":"المتضررة!D24","v":0}]
[null,{"$f":"المتضررة!D25","v":0}]
[null,{"$f":"المتضررة!D26","v":0}]
[null,{"$f":"المتضررة!D27","v":0}]
[null,{"$f":"المتضررة!D28","v":0}]
[]
[]
[]
[null,null,null,null,null,null,null,null,null,null,2]
["عمان -إِشارةالرابية بجانب فندق ديز إن-تلفاكس :(06/5504053)تلفون :(06/5504054)موبايل:(0795575439)"]
["Amman - AL Rabyah Traffic - Dayes In Hotel   * Telfax: 06 550 40 53 Tel :06 550 40 54 Mobile:079 557 54 39"]
[]
["    مؤسسة العقاب لتسوية الخسائر ",null,null,null,null,null,"AL - EQAB EAST "]
[" معاين ومسوي خسائر - مرخص ",null,null,null,null,null,"Loss Adjuster by the Insurance expert"]
[{"$f":"A50","v":"التاريــــــخ:-"},{"$f":"B50","v":"00:00:00"},null,null,null,null,null,{"$f":"H50","v":"تقرير رقم :- "},{"$f":"I50","v":0}]
[]
["ثالثاً :- القطع التبديلية  والإصلاحات المطلوبة "]
[]
["القطع التبديلية ",null,null,null,null,"الرقم ","الإصلاحات "]
["البيان",null,{"$f":"'القطع '!F4","v":0},{"$f":"'القطع '!G4","v":0},{"$f":"'القطع '!H4","v":0},null,"البيان ",null,null,"القيمة "]
[{"$f":"'القطع '!C5","v":0},null,{"$f":"'القطع '!F5","v":0},{"$f":"'القطع '!G5","v":0},{"$f":"'القطع '!H5","v":0},1,{"$f":"'الاصلاحات '!B4","v":0},null,null,{"$f":"'الاصلاحات '!E4","v":0}]
[{"$f":"'القطع '!C6","v":0},null,{"$f":"'القطع '!F6","v":0},{"$f":"'القطع '!G6","v":0},{"$f":"'القطع '!H6","v":0},2,{"$f":"'الاصلاحات '!B5","v":0},null,null,{"$f":"'الاصلاحات '!E5","v":0}]
[{"$f":"'القطع '!C7","v":0},null,{"$f":"'القطع '!F7","v":0},{"$f":"'القطع '!G7","v":0},{"$f":"'القطع '!H7","v":0},3,{"$f":"'الاصلاحات '!B6","v":0},null,null,{"$f":"'الاصلاحات '!E6","v":0}]
[{"$f":"'القطع '!C8","v":0},null,{"$f":"'القطع '!F8","v":0},{"$f":"'القطع '!G8","v":0},{"$f":"'القطع '!H8","v":0},4,{"$f":"'الاصلاحات '!B7","v":0},null,null,{"$f":"'الاصلاحات '!E7","v":0}]
[{"$f":"'القطع '!C9","v":0},null,{"$f":"'القطع '!F9","v":0},{"$f":"'القطع '!G9","v":0},{"$f":"'القطع '!H9","v":0},5,{"$f":"'الاصلاحات '!B8","v":0},null,null,{"$f":"'الاصلاحات '!E8","v":0}]
[{"$f":"'القطع '!C10","v":0},null,{"$f":"'القطع '!F10","v":0},{"$f":"'القطع '!G10","v":0},{"$f":"'القطع '!H10","v":0},6,{"$f":"'الاصلاحات '!B9","v":0},null,null,{"$f":"'الاصلاحات '!E9","v":0}]
[{"$f":"'القطع '!C11","v":0},null,{"$f":"'القطع '!F11","v":0},{"$f":"'القطع '!G11","v":0},{"$f":"'القطع '!H11","v":0},7,{"$f":"'الاصلاحات '!B10","v":0},null,null,{"$f":"'الاصلاحات '!E10","v":0}]
[{"$f":"'القطع '!C12","v":0},null,{"$f":"'القطع '!F12","v":0},{"$f":"'القطع '!G12","v":0},{"$f":"'القطع '!H12","v":0},8,{"$f":"'الاصلاحات '!B11","v":0},null,null,{"$f":"'الاصلاحات '!E11","v":0}]
[{"$f":"'القطع '!C13","v":0},null,{"$f":"'القطع '!F13","v":0},{"$f":"'القطع '!G13","v":0},{"$f":"'القطع '!H13","v":0},9,{"$f":"'الاصلاحات '!B12","v":0},null,null,{"$f":"'الاصلاحات '!E12","v":0}]
[{"$f":"'القطع '!C14","v":0},null,{"$f":"'القطع '!F14","v":0},{"$f":"'القطع '!G14","v":0},{"$f":"'القطع '!H14","v":0},10,{"$f":"'الاصلاحات '!B13","v":0},null,null,{"$f":"'الاصلاحات '!E13","v":0}]
[{"$f":"'القطع '!C15","v":0},null,{"$f":"'القطع '!F15","v":0},{"$f":"'القطع '!G15","v":0},{"$f":"'القطع '!H15","v":0},11,{"$f":"'الاصلاحات '!B14","v":0},null,null,{"$f":"'الاصلاحات '!E14","v":0}]
[{"$f":"'القطع '!C16","v":0},null,{"$f":"'القطع '!F16","v":0},{"$f":"'القطع '!G16","v":0},{"$f":"'القطع '!H16","v":0},12,{"$f":"'الاصلاحات '!B15","v":0},null,null,{"$f":"'الاصلاحات '!E15","v":0}]
[{"$f":"'القطع '!C17","v":0},null,{"$f":"'القطع '!F17","v":0},{"$f":"'القطع '!G17","v":0},{"$f":"'القطع '!H17","v":0},13,{"$f":"'الاصلاحات '!B16","v":0},null,null,{"$f":"'الاصلاحات '!E16","v":0}]
[{"$f":"'القطع '!C18","v":0},null,{"$f":"'القطع '!F18","v":0},{"$f":"'القطع '!G18","v":0},{"$f":"'القطع '!H18","v":0},14,{"$f":"'الاصلاحات '!B17","v":0},null,null,{"$f":"'الاصلاحات '!E17","v":0}]
[{"$f":"'القطع '!C19","v":0},null,{"$f":"'القطع '!F19","v":0},{"$f":"'القطع '!G19","v":0},{"$f":"'القطع '!H19","v":0},15,{"$f":"'الاصلاحات '!B18","v":0},null,null,{"$f":"'الاصلاحات '!E18","v":0}]
[{"$f":"'القطع '!C20","v":0},null,{"$f":"'القطع '!F20","v":0},{"$f":"'القطع '!G20","v":0},{"$f":"'القطع '!H20","v":0},16,{"$f":"'الاصلاحات '!B19","v":0},null,null,{"$f":"'الاصلاحات '!E19","v":0}]
[{"$f":"'القطع '!C21","v":0},null,{"$f":"'القطع '!F21","v":0},{"$f":"'القطع '!G21","v":0},{"$f":"'القطع '!H21","v":0},17,{"$f":"'الاصلاحات '!B20","v":0},null,null,{"$f":"'الاصلاحات '!E20","v":0}]
[{"$f":"'القطع '!C22","v":0},null,{"$f":"'القطع '!F22","v":0},{"$f":"'القطع '!G22","v":0},{"$f":"'القطع '!H22","v":0},18,{"$f":"'الاصلاحات '!B21","v":0},null,null,{"$f":"'الاصلاحات '!E21","v":0}]
[{"$f":"'القطع '!C23","v":0},null,{"$f":"'القطع '!F23","v":0},{"$f":"'القطع '!G23","v":0},{"$f":"'القطع '!H23","v":0},19,{"$f":"'الاصلاحات '!B22","v":0},null,null,{"$f":"'الاصلاحات '!E22","v":0}]
[{"$f":"'القطع '!C24","v":0},null,{"$f":"'القطع '!F24","v":0},{"$f":"'القطع '!G24","v":0},{"$f":"'القطع '!H24","v":0},20,{"$f":"'الاصلاحات '!B23","v":0},null,null,{"$f":"'الاصلاحات '!E23","v":0}]
[{"$f":"'القطع '!C25","v":0},null,{"$f":"'القطع '!F25","v":0},{"$f":"'القطع '!G25","v":0},{"$f":"'القطع '!H25","v":0},21,{"$f":"'الاصلاحات '!B24","v":0},null,null,{"$f":"'الاصلاحات '!E24","v":0}]
[{"$f":"'القطع '!C26","v":0},null,{"$f":"'القطع '!F26","v":0},{"$f":"'القطع '!G26","v":0},{"$f":"'القطع '!H26","v":0},22,{"$f":"'الاصلاحات '!B25","v":0},null,null,{"$f":"'الاصلاحات '!E25","v":0}]
[{"$f":"'القطع '!C27","v":0},null,{"$f":"'القطع '!F27","v":0},{"$f":"'القطع '!G27","v":0},{"$f":"'القطع '!H27","v":0},23,{"$f":"'الاصلاحات '!B26","v":0},null,null,{"$f":"'الاصلاحات '!E26","v":0}]
[{"$f":"'القطع '!C28","v":0},null,{"$f":"'القطع '!F28","v":0},{"$f":"'القطع '!G28","v":0},{"$f":"'القطع '!H28","v":0},24,{"$f":"'الاصلاحات '!B27","v":0},null,null,{"$f":"'الاصلاحات '!E27","v":0}]
[{"$f":"'القطع '!C29","v":0},null,{"$f":"'القطع '!F29","v":0},{"$f":"'القطع '!G29","v":0},{"$f":"'القطع '!H29","v":0},25,{"$f":"'الاصلاحات '!B28","v":0},null,null,{"$f":"'الاصلاحات '!E28","v":0}]
["المجموع ",null,{"$f":"'القطع '!F30","v":0},{"$f":"'القطع '!G30","v":0},{"$f":"'القطع '!H30","v":0},null,"المجموع ",null,{"$f":"'الاصلاحات '!E29","v":0}]
["متوسط سعر القطع ",null,{"$f":"'القطع '!F31","v":0}]
[]
[null,{"$f":"'العطل ونقصان القيمة'!C10","v":0}]
[null,{"$f":"'العطل ونقصان القيمة'!C11","v":0}]
[null,{"$f":"'العطل ونقصان القيمة'!C12","v":0}]
[null,{"$f":"'العطل ونقصان القيمة'!C13","v":0}]
[null,{"$f":"'العطل ونقصان القيمة'!C14","v":0}]
[null,{"$f":"'العطل ونقصان القيمة'!C15","v":0}]
[]
[]
[]
[]
[]
[null,null,null,null,null,null,null,null,null,null,3]
["عمان -إِشارةالرابية بجانب فندق ديز إن-تلفاكس :(06/5504053)تلفون :(06/5504054)موبايل:(0795575439)"]
["Amman - AL Rabyah Traffic - Dayes In Hotel   * Telfax: 06 550 40 53 Tel :06 550 40 54 Mobile:079 557 54 39"]
[]
["    مؤسسة العقاب لتسوية الخسائر ",null,null,null,null,null,"AL - EQAB EAST "]
[" معاين ومسوي خسائر - مرخص ",null,null,null,null,null,"Loss Adjuster by the Insurance expert"]
["التاريــــــخ:-",{"$f":"reportinfo!D4","v":"00:00:00"},null,null,null,null,null,"تقرير رقم :- ",{"$f":"reportinfo!D3","v":0}]
[]
["رابعاً : تحديد بدل نقصان القيمة "]
[null," مـن اجل تحديد نقصان قيمة المركبة لابـد مــن الأخــذ بعيــن الإعتبـار نــوع المركبــة وموديلهــا "]
[null,"والإضافات  المتوفرة فيها وحجم الطلب عليها في السوق المحلي والحالة العامة للمركبة قبل الحادث ."]
[null,"البيـــــــــــان ",null,null,null,null,null,"القيمة "]
[null,null,null,null,null,null,null,"فلس دينار "]
["*","  أقدر القيمة السوقية للمركبة قبــــــل الحــــــــادث بــــــ",null,null,null,null,null,{"$f":"'العطل ونقصان القيمة'!F4","v":0}]
["*","  أقدر القيمة السوقية للمركبة بعد الحادث وقبل الاصلاح بـ",null,null,null,null,null,{"$f":"'العطل ونقصان القيمة'!F5","v":0}]
["*","  الفرق بين القيمة السوقية قبل الحادث وقبــل الاصلاح بــ",null,null,null,null,null,{"$f":"'العطل ونقصان القيمة'!F6","v":0}]
["*","  أقدر الانخفاض بقيمة المركبة بعــد عمليــة الاصلاح بــــ",null,null,null,null,null,{"$f":"'العطل ونقصان القيمة'!F7","v":0}]
[null,{"$f":"H155","v":0},"─",{"$f":"'القطع '!F31","v":0},"+",{"$f":"'الاصلاحات '!E29","v":0},"="]
[{"$f":"'العطل ونقصان القيمة'!B18","v":0},{"$f":"'العطل ونقصان القيمة'!C18","v":0},null,null,{"$f":"'العطل ونقصان القيمة'!C20","v":0}]
[null,{"$f":"'العطل ونقصان القيمة'!C19","v":0},null,null,{"$f":"'العطل ونقصان القيمة'!C21","v":0}]
["خامساً: تحديد بدل فوات المنفعة "]
[null,"تبين أنها بحاجة لمدة إصلاح فعليـة ",null,null,{"$f":"'العطل ونقصان القيمة'!M4","v":0},{"$f":"E29","v":0}]
[null,"أقــدر المـثـل اليومـــي للمركبــة بـ",null,null,{"$f":"G30","v":0},{"$f":"G29","v":0}]
["إستناداً إلى ماورد أعلاه فإن بدل فوات المنفعة تكون ناتج ضرب عدد أيام التعطيل مضروبا في قيمة المثل اليومي . "]
[null,{"$f":"E161","v":0},{"$f":"F29","v":"X"},{"$f":"E162","v":0},"=",{"$f":"'العطل ونقصان القيمة'!M6","v":0},"دينار "]
[null,{"$f":"F161","v":0},null,{"$f":"F162","v":0}]
[" سادساً : إجمالي تكلفة الحادث"]
[null,"البـيــــــــــان ",null,null,null,null,null,"القيمـــة"]
[null,null,null,null,null,null,null,"فلس","دينار"]
[null,"  أقدر ثمن القطع التبديلية بــ",null,null,null,null,null,{"$f":"'القطع '!F31","v":0}]
[null,"  أقــدر قـيمـة الأجــور   بـــ",null,null,null,null,null,{"$f":"'الاصلاحات '!E29","v":0}]
[null,"  أقدر بدل نقصان القيمة بــ",null,null,null,null,null,{"$f":"'العطل ونقصان القيمة'!F7","v":0}]
[null,"  أقدر بدل فوات المنفعة بـــ",null,null,{"$f":"E161","v":0},"X",{"$f":"E162","v":0},{"$f":"'العطل ونقصان القيمة'!M6","v":0}]
[null,null,null,null,{"$f":"F161","v":0},null,{"$f":"F162","v":0}]
[null,"أقدر اجمالــــــي تكلفة الحادث  بـــ",null,null,null,null,null,{"$f":"H32","v":0}]
[null,{"$f":"Cur(H174,\"دينار أردني\",\"فلس\")","v":"صفر"}]
[]
[null,"أتمنى أن أكون قـد وفقت في أداء المهمة الموكلة لي بكل أمانة وإخلاص ."]
[null,"وتفضلوا بقبول فائق الإحترام والتقدير ,,,,"]
[null,null,null,null,null,null,null,"معاين ومسوي خسائر"]
[null,null,null,null,null,null,null,"محمد أحمد عبد الله العوامله "]
[]
[]
[]
[]
[]
["عمان -إِشارةالرابية بجانب فندق ديز إن-تلفاكس :(06/5504053)تلفون :(06/5504054)موبايل:(0795575439)"]
["Amman - AL Rabyah Traffic - Dayes In Hotel   * Telfax: 06 550 40 53 Tel :06 550 40 54 Mobile:079 557 54 39"]
[]
["    مؤسسة العقاب لتسوية الخسائر ",null,null,null,null,null,"AL - EQAB EAST "]
[" معاين ومسوي خسائر - مرخص ",null,null,null,null,null,"Loss Adjuster by the Insurance expert"]
[]
[]
[]
[]
[]
[]
[]
[]
[]
[]
[]
[]
[]
[]
[]
[]
[]
[]
[]
[]
[]
[]
[]
[]
[]
[]
[]
[]
[]
[]
[]
[]
[]
[]
[]
[]
[]
[]
[]
[]
[]
["عمان -إِشارةالرابية بجانب فندق ديز إن-تلفاكس :(06/5504053)تلفون :(06/5504054)موبايل:(0795575439)"]
["Amman - AL Rabyah Traffic - Dayes In Hotel   * Telfax: 06 550 40 53 Tel :06 550 40 54 Mobile:079 557 54 39"]

{"sheet":"التقرير","index":13,"n_rows":233,"n_cols":10,"rows_kept":233,"cut":false,"hidden":false,"merged":[[82,1,82,3],[83,1,83,3],[84,1,84,3],[85,1,85,3],[38,1,38,8],[33,7,33,8],[31,7,32,8],[34,1,34,6],[34,7,35,8],[35,1,35,6],[36,1,36,8],[67,2,67,4],[68,2,68,4],[59,1,59,2],[59,3,59,4],[51,1,51,3],[65,6,65,8],[63,6,63,8],[64,6,64,8],[64,2,64,4],[65,2,65,4],[51,6,51,7],[52,6,52,7],[63,2,63,4],[158,4,158,6],[162,0,162,9],[6,1,6,3],[199,4,199,5],[199,6,199,7],[200,4,200,8],[201,4,201,9],[214,2,214,7],[9,1,9,5],[48,0,48,2],[48,6,48,9],[157,1,157,3],[158,1,158,3],[157,4,157,6],[190,1,190,2],[192,3,193,6],[15,2,15,3],[188,0,188,2],[189,0,189,2],[19,0,19,9],[23,0,23,9],[57,0,57,4],[208,0,208,1],[81,1,81,3],[1,0,1,2],[1,6,1,9],[2,0,2,2],[2,6,2,9],[3,1,3,2],[44,0,44,9],[45,0,45,9],[47,0,47,2],[47,6,47,9],[5,1,5,3],[5,8,5,9],[7,8,7,9],[5,6,5,7],[7,6,7,7],[11,0,11,1],[13,3,13,4],[13,5,13,9],[14,2,14,3],[11,8,11,9],[10,8,10,9],[16,8,16,9],[10,0,10,1],[10,4,10,5],[25,0,25,9],[21,0,21,9],[22,0,22,9],[71,3,71,5],[73,2,73,8],[70,1,70,8],[76,0,76,9],[39,1,39,8],[40,7,40,9],[41,7,41,9],[31,1,32,3],[66,6,66,8],[67,6,67,8],[68,6,68,8],[66,2,66,4],[52,8,52,9],[31,5,32,5],[59,5,59,6],[59,7,59,8],[60,6,60,8],[61,6,61,8],[62,6,62,8],[52,1,52,3],[51,8,51,9],[55,4,55,5],[11,4,11,5],[20,0,20,6],[14,5,14,6],[15,5,15,6],[16,2,16,3],[16,5,16,7],[97,5,98,5],[97,1,97,4],[98,1,98,3],[97,6,97,9],[18,0,18,9],[26,7,26,8],[20,7,20,8],[61,2,61,4],[62,2,62,4],[60,2,60,4],[58,3,58,4],[58,5,58,6],[49,1,49,2],[28,7,28,8],[29,7,29,8],[30,7,30,8],[26,1,27,6],[24,0,24,9],[55,8,55,9],[104,1,104,3],[105,1,105,3],[106,1,106,3],[107,1,107,3],[108,1,108,3],[37,1,37,8],[99,1,99,3],[100,1,100,3],[101,1,101,3],[102,1,102,3],[103,1,103,3],[95,0,95,9],[78,1,78,2],[78,3,78,8],[79,1,79,2],[79,3,79,8],[93,1,93,2],[91,0,91,2],[92,0,92,2],[92,6,92,9],[91,6,91,9],[89,0,89,9],[88,0,88,9],[98,6,98,8],[114,1,114,3],[115,1,115,3],[116,1,116,3],[117,1,117,3],[118,1,118,3],[109,1,109,3],[110,1,110,3],[111,1,111,3],[112,1,112,3],[113,1,113,3],[104,6,104,8],[105,6,105,8],[106,6,106,8],[107,6,107,8],[108,6,108,8],[99,6,99,8],[100,6,100,8],[101,6,101,8],[102,6,102,8],[103,6,103,8],[109,6,109,8],[110,6,110,8],[111,6,111,8],[112,6,112,8],[113,6,113,8],[124,6,125,7],[124,3,125,4],[124,1,125,2],[124,8,125,9],[119,6,119,8],[120,6,120,8],[121,6,121,8],[122,6,122,8],[123,6,123,8],[114,6,114,8],[115,6,115,8],[116,6,116,8],[117,6,117,8],[118,6,118,8],[119,1,119,3],[120,1,120,3],[121,1,121,3],[122,1,122,3],[123,1,123,3],[159,0,159,9],[160,1,160,3],[161,1,161,3],[166,1,167,6],[166,7,166,8],[168,7,168,8],[169,7,169,8],[170,7,170,8],[171,1,172,3],[171,5,172,5],[171,7,172,8],[163,2,164,2],[163,4,164,4],[163,5,164,5],[163,6,164,6],[165,0,165,9],[173,7,173,8],[189,6,189,9],[205,1,205,2],[197,0,197,2],[203,0,204,0],[203,1,204,1],[203,2,204,7],[195,2,195,5],[199,2,199,3],[200,2,200,3],[201,2,201,3],[176,1,176,8],[177,1,177,8],[178,1,178,8],[179,7,179,9],[180,7,180,9],[188,7,188,9],[185,0,185,9],[184,0,184,9],[231,0,231,9],[232,0,232,9],[174,1,174,6],[174,7,175,8],[175,1,175,6],[206,0,206,1],[207,0,207,1],[221,6,221,8],[222,6,222,8],[210,0,210,1],[211,0,211,1],[210,2,210,4],[206,2,206,4],[207,2,207,4],[208,2,208,4],[209,2,209,4],[209,0,209,1],[155,7,156,8],[154,7,154,8],[153,7,153,8],[152,7,152,8],[151,7,151,8],[150,7,150,8],[152,1,152,6],[153,1,153,6],[154,1,154,6],[155,1,155,6],[150,1,151,6],[149,1,149,9],[132,1,132,4],[145,1,145,2],[147,0,147,9],[148,1,148,9],[127,1,127,2],[128,1,128,4],[129,1,129,4],[130,1,130,4],[131,1,131,4],[140,0,140,9],[141,0,141,9],[143,0,143,2],[143,6,143,9],[144,0,144,2],[144,6,144,9]]}
[]
["    مؤسسة العقاب لتسوية الخسائر ",null,null,null,null,null,"AL - EQAB EAST "]
[" معاين ومسوي خسائر - مرخص ",null,null,null,null,null,"Loss Adjuster by the Insurance expert"]
["التاريــــــخ:-",{"$f":"reportinfo!D4","v":"00:00:00"},null,null,null,null,null,"تقرير رقم :- ",{"$f":"reportinfo!D3","v":0}]
[]
["الســــادة / ",{"$f":"reportinfo!D5","v":0},null,null,"المحترمين ",null,"إدعائكم رقم",null,{"$f":"reportinfo!D6","v":0}]
[{"$f":"الفاتورة!G13","v":"السيد"},{"$f":"المتضررة!G5","v":0},null,null,{"$f":"الفاتورة!L13","v":0}]
[null,"تحيـة طيبـة وبعــد ,,,",null,null,null,null,{"$f":"reportinfo!B8","v":0},null,{"$f":"reportinfo!D8","v":0}]
[]
[null," الموضوع / تسوية أضرار المركبة ذات المواصفات التالية :-"]
["رقم المركبة ",null,"النوع","الصنف","الشكل و الاستعمال",null,"اللون ","الموديل","رقم الشصي"]
[{"$f":"المتضررة!G4","v":0},null,{"$f":"المتضررة!G7","v":0},{"$f":"المتضررة!G8","v":0},{"$f":"المتضررة!G12","v":0},null,{"$f":"المتضررة!G10","v":0},{"$f":"المتضررة!G9","v":0},{"$f":"المتضررة!G11","v":0}]
[]
["جـراء الحادث الـذي وقـع بتـاريــــخ",null,null,{"$f":"'معلومات الحادث '!H6","v":"00:00:00"},null,"مع المركبة المتسببة في الحادث ذات المواصفات التالية  :-"]
[null,null,"رقم المركبة ",null,"النــوع","الشكل والإستعمال "]
[null,null,{"$f":"مسبب!H4","v":0},null,{"$f":"مسبب!H7","v":0},{"$f":"مسبب!H8","v":0}]
["والمؤمنة لديكم بالعقد رقم",null,{"$f":"مسبب!H9","v":0},null,"للـفتــرة ",{"$f":"مسبب!H10","v":0},null,null,{"$f":"مسبب!H11","v":0}]
[]
["بالإشارة الى الموضوع اعلاه وبناءاً على الإتفاق الذي تم بينكم وبين مالك المركبة المتضررة لإجراء الخبرة الفنية  "]
["على المركبة ذات المواصفات اعلاه ."]
["  لقــد قمــت بالكشــف الحســي والفنـي علــى المركبـة مـــوضـوع هـذا التقــرير بتاريخ",null,null,null,null,null,null,{"$f":"المتضررة!G21","v":"00:00:00"}]
["حيث شاهدت المركبة بعد الحادث وقبل عملية الإصلاح وبعد تحليل ما ورد في تقرير الشرطة  ومطابقة نقاط الضرر"]
["مع الواقع الفعلي  تم تحديد لاجزاء التي تضرر بها المركبة نتيجة الحادث ."]
[]
["بناءاً على ذلك قمت بتقديرالأضراراللاحقة بالمركبة من حيـث الأجوروالقطع التبديلية وبدل نقصان القيمة وبدل فوات المنفعة."]
["وأنني أقــدم لكم خلاصة هذا التقرير :-"]
[null,"البـيــــــــــان ",null,null,null,null,null,"القيمـــة"]
[null,null,null,null,null,null,null,"فلس","دينار"]
[null,"  أقدر ثمن القطع التبديلية بــ",null,null,null,null,null,{"$f":"'القطع '!F31","v":0}]
[null,"  أقــدر قـيمـة الأجــور   بـــ",null,null,null,null,null,{"$f":"'الاصلاحات '!E29","v":0}]
[null,"  أقدر بدل نقصان القيمة بــ",null,null,null,null,null,{"$f":"'العطل ونقصان القيمة'!F7","v":0}]
[null,"  أقدر بدل فوات المنفعة بـــ",null,null,{"$f":"'العطل ونقصان القيمة'!M4","v":0},"X",{"$f":"'العطل ونقصان القيمة'!M5","v":0},{"$f":"'العطل ونقصان القيمة'!M6","v":0}]
[null,null,null,null,{"$f":"'العطل ونقصان القيمة'!L4","v":0},null,{"$f":"'العطل ونقصان القيمة'!L5","v":0}]
[null,"  ونـــــــــــــــــــــــــــــش",null,null,null,null,null,{"$f":"'العطل ونقصان القيمة'!L15","v":0}]
[null,"أقدر اجمالــــــي تكلفة الحادث  بـــ",null,null,null,null,null,{"$f":"'العطل ونقصان القيمة'!L16","v":0}]
[null,{"$f":"Cur(H35,\"دينارأردني\",\"فلس\")","v":"صفر"}]
[{"$f":"reportinfo!B10","v":0},{"$f":"reportinfo!D10","v":0}]
[null," تم تحرير هذا التقرير بما يتوافق مع أسس وقرارت هيئة التأمين لتسوية الخسائر"]
[null,"أتمنى أن أكون قـد وفقت في أداء المهمة الموكلة لي بكل أمانة وإخلاص ."]
[null,"وتفضلوا بقبول فائق الإحترام والتقدير ,,,,"]
[null,null,null,null,null,null,null,"معاين ومسوي خسائر"]
[null,null,null,null,null,null,null,"محمد أحمد عبد الله العوامله "]
[]
["رقم الصفحة1"]
["عمان -إِشارةالرابية بجانب فندق ديز إن-تلفاكس :(06/5504053)تلفون :(06/5504054)موبايل:(0795575439)"]
["Amman - AL Rabyah Traffic - Dayes In Hotel   * Telfax: 06 550 40 53 Tel :06 550 40 54 Mobile:079 557 54 39"]
[]
["    مؤسسة العقاب لتسوية الخسائر ",null,null,null,null,null,"AL - EQAB EAST "]
[" معاين ومسوي خسائر - مرخص ",null,null,null,null,null,"Loss Adjuster by the Insurance expert"]
["التاريــــــخ:-",{"$f":"B4","v":"00:00:00"},null,null,null,null,null,"تقرير رقم :- ",{"$f":"I4","v":0}]
[]
[" الســــادة /",{"$f":"reportinfo!D5","v":0},null,null,"المحترمين ",null,"إدعائكم رقم",null,{"$f":"reportinfo!D6","v":0}]
[{"$f":"A7","v":"السيد"},{"$f":"B7","v":0},null,null,{"$f":"E7","v":0},null,{"$f":"reportinfo!B8","v":0},null,{"$f":"reportinfo!D8","v":0}]
[null,"تحيـة طيبـة وبعــــد,,,"]
[]
[" الموضوع : تسوية وتقديرأضرارالمركبة رقـــم ",null,null,null,{"$f":"A12","v":0},null,"نـــــــوع",{"$f":"C12","v":0},{"$f":"D12","v":0}]
[]
["أولاً: وقائع الحادث حسب ضبط الشرطة الصادرمن مديرية شرطــة ",null,null,null,null,{"$f":"'معلومات الحادث '!H10","v":0},"مركز أمن ",{"$f":"'معلومات الحادث '!H14","v":0}]
[null,null,null,"رقم تسلسل الكروكي",null,{"$f":"'معلومات الحادث '!H4","v":0}]
[null,"رقم المركبة في الكروكي",null,{"$f":"المتضررة!G17","v":0},null,"رقم المركبة في الكروكي",null,{"$f":"مسبب!H12","v":0}]
[null,"رقم السيارة ",{"$f":"المتضررة!G4","v":0},null,null,"رقم السيارة ",{"$f":"مسبب!H4","v":0}]
[null,"المالــك ",{"$f":"المتضررة!G5","v":0},null,null,"المالــك ",{"$f":"مسبب!H5","v":0}]
[null,"السـائـق",{"$f":"المتضررة!G7","v":0},null,null,"السـائـق",{"$f":"مسبب!H6","v":0}]
[null,"نــوع ",{"$f":"المتضررة!G7","v":0},null,null,"نــوع ",{"$f":"مسبب!H7","v":0}]
[null,"الاستعمـال ",{"$f":"المتضررة!G12","v":0},null,null,"الاستعمـال ",{"$f":"مسبب!H8","v":0}]
[null,"مؤمنة لدى ",{"$f":"المتضررة!G13","v":0},null,null,"مؤمنة لدى ",{"$f":"reportinfo!D5","v":0}]
[null,"رقم العقـد",{"$f":"المتضررة!G14","v":0},null,null,"رقم العقـد",{"$f":"مسبب!H9","v":0}]
[null,"مدة التأمين ",{"$f":"المتضررة!G15","v":0},null,null,"مدة التأمين ",{"$f":"مسبب!H10","v":0}]
[null,"الاخطاء ",{"$f":"المتضررة!G18","v":0},null,null,"الاخطاء ",{"$f":"مسبب!H13","v":0}]
[]
[null,"تفاصيل الحادث :-"]
[null,-1,"نتيجة ",{"$f":"مسبب!H13","v":0},null,null,"من قبل سائق المركبة رقم ",null,{"$f":"مسبب!H12","v":0}]
[null,null,"مما أدى إلى إصطدامها  بالمركبة رقم ",null,null,{"$f":"D60","v":0},"بالنقطة رقم ",{"$f":"'معلومات الحادث '!H12","v":0}]
[]
[null,-2,"نتائج الحادث ",{"$f":"'معلومات الحادث '!H16","v":0}]
[]
["ثانياَ :- نقاط ضرر المركبة موضوع هذا التقرير حسب تقرير الشرطة"]
[]
[null,"منقطة الكشـف ",null,{"$f":"المتضررة!G20","v":0}]
[null,"مناطق الضرر ",null,{"$f":"المتضررة!G19","v":0}]
[]
[{"$f":"المتضررة!D23","v":0},{"$f":"المتضررة!D24","v":0}]
[null,{"$f":"المتضررة!D25","v":0}]
[null,{"$f":"المتضررة!D26","v":0}]
[null,{"$f":"المتضررة!D27","v":0}]
[null,{"$f":"المتضررة!D28","v":0}]
[]
[]
["عمان -إِشارةالرابية بجانب فندق ديز إن-تلفاكس :(06/5504053)تلفون :(06/5504054)موبايل:(0795575439)"]
["Amman - AL Rabyah Traffic - Dayes In Hotel   * Telfax: 06 550 40 53 Tel :06 550 40 54 Mobile:079 557 54 39"]
[]
["    مؤسسة العقاب لتسوية الخسائر ",null,null,null,null,null,"AL - EQAB EAST "]
[" معاين ومسوي خسائر - مرخص ",null,null,null,null,null,"Loss Adjuster by the Insurance expert"]
["التاريــــــخ:-",{"$f":"reportinfo!D4","v":"00:00:00"},null,null,null,0,null,"تقرير رقم :- ",{"$f":"reportinfo!D3","v":0}]
[]
["ثالثاً :- القطع التبديلية  والإصلاحات المطلوبة "]
[]
[null,"القطع التبديلية ",null,null,null,"الرقم ","الإصلاحات "]
[null,"البيان",null,null,"القيمة ",null,"البيان ",null,null,"القيمة "]
[null,{"$f":"'القطع '!C5","v":0},null,null,{"$f":"'القطع '!F5","v":0},1,{"$f":"'الاصلاحات '!B4","v":0},null,null,{"$f":"'الاصلاحات '!E4","v":0}]
[null,{"$f":"'القطع '!C6","v":0},null,null,{"$f":"'القطع '!F6","v":0},2,{"$f":"'الاصلاحات '!B5","v":0},null,null,{"$f":"'الاصلاحات '!E5","v":0}]
[null,{"$f":"'القطع '!C7","v":0},null,null,{"$f":"'القطع '!F7","v":0},3,{"$f":"'الاصلاحات '!B6","v":0},null,null,{"$f":"'الاصلاحات '!E6","v":0}]
[null,{"$f":"'القطع '!C8","v":0},null,null,{"$f":"'القطع '!F8","v":0},4,{"$f":"'الاصلاحات '!B7","v":0},null,null,{"$f":"'الاصلاحات '!E7","v":0}]
[null,{"$f":"'القطع '!C9","v":0},null,null,{"$f":"'القطع '!F9","v":0},5,{"$f":"'الاصلاحات '!B8","v":0},null,null,{"$f":"'الاصلاحات '!E8","v":0}]
[null,{"$f":"'القطع '!C10","v":0},null,null,{"$f":"'القطع '!F10","v":0},6,{"$f":"'الاصلاحات '!B9","v":0},null,null,{"$f":"'الاصلاحات '!E9","v":0}]
[null,{"$f":"'القطع '!C11","v":0},null,null,{"$f":"'القطع '!F11","v":0},7,{"$f":"'الاصلاحات '!B10","v":0},null,null,{"$f":"'الاصلاحات '!E10","v":0}]
[null,{"$f":"'القطع '!C12","v":0},null,null,{"$f":"'القطع '!F12","v":0},8,{"$f":"'الاصلاحات '!B11","v":0},null,null,{"$f":"'الاصلاحات '!E11","v":0}]
[null,{"$f":"'القطع '!C13","v":0},null,null,{"$f":"'القطع '!F13","v":0},9,{"$f":"'الاصلاحات '!B12","v":0},null,null,{"$f":"'الاصلاحات '!E12","v":0}]
[null,{"$f":"'القطع '!C14","v":0},null,null,{"$f":"'القطع '!F14","v":0},10,{"$f":"'الاصلاحات '!B13","v":0},null,null,{"$f":"'الاصلاحات '!E13","v":0}]
[null,{"$f":"'القطع '!C15","v":0},null,null,{"$f":"'القطع '!F15","v":0},11,{"$f":"'الاصلاحات '!B14","v":0},null,null,{"$f":"'الاصلاحات '!E14","v":0}]
[null,{"$f":"'القطع '!C16","v":0},null,null,{"$f":"'القطع '!F16","v":0},12,{"$f":"'الاصلاحات '!B15","v":0},null,null,{"$f":"'الاصلاحات '!E15","v":0}]
[null,{"$f":"'القطع '!C17","v":0},null,null,{"$f":"'القطع '!F17","v":0},13,{"$f":"'الاصلاحات '!B16","v":0},null,null,{"$f":"'الاصلاحات '!E16","v":0}]
[null,{"$f":"'القطع '!C18","v":0},null,null,{"$f":"'القطع '!F18","v":0},14,{"$f":"'الاصلاحات '!B17","v":0},null,null,{"$f":"'الاصلاحات '!E17","v":0}]
[null,{"$f":"'القطع '!C19","v":0},null,null,{"$f":"'القطع '!F19","v":0},15,{"$f":"'الاصلاحات '!B18","v":0},null,null,{"$f":"'الاصلاحات '!E18","v":0}]
[null,{"$f":"'القطع '!C20","v":0},null,null,{"$f":"'القطع '!F20","v":0},16,{"$f":"'الاصلاحات '!B19","v":0},null,null,{"$f":"'الاصلاحات '!E19","v":0}]
[null,{"$f":"'القطع '!C21","v":0},null,null,{"$f":"'القطع '!F21","v":0},17,{"$f":"'الاصلاحات '!B20","v":0},null,null,{"$f":"'الاصلاحات '!E20","v":0}]
[null,{"$f":"'القطع '!C22","v":0},null,null,{"$f":"'القطع '!F22","v":0},18,{"$f":"'الاصلاحات '!B21","v":0},null,null,{"$f":"'الاصلاحات '!E21","v":0}]
[null,{"$f":"'القطع '!C23","v":0},null,null,{"$f":"'القطع '!F23","v":0},19,{"$f":"'الاصلاحات '!B22","v":0},null,null,{"$f":"'الاصلاحات '!E22","v":0}]
[null,{"$f":"'القطع '!C24","v":0},null,null,{"$f":"'القطع '!F24","v":0},20,{"$f":"'الاصلاحات '!B23","v":0},null,null,{"$f":"'الاصلاحات '!E23","v":0}]
[null,{"$f":"'القطع '!C25","v":0},null,null,{"$f":"'القطع '!F25","v":0},21,{"$f":"'الاصلاحات '!B24","v":0},null,null,{"$f":"'الاصلاحات '!E24","v":0}]
[null,{"$f":"'القطع '!C26","v":0},null,null,{"$f":"'القطع '!F26","v":0},22,{"$f":"'الاصلاحات '!B25","v":0},null,null,{"$f":"'الاصلاحات '!E25","v":0}]
[null,{"$f":"'القطع '!C27","v":0},null,null,{"$f":"'القطع '!F27","v":0},23,{"$f":"'الاصلاحات '!B26","v":0},null,null,{"$f":"'الاصلاحات '!E26","v":0}]
[null,{"$f":"'القطع '!C28","v":0},null,null,{"$f":"'القطع '!F28","v":0},24,{"$f":"'الاصلاحات '!B27","v":0},null,null,{"$f":"'الاصلاحات '!E27","v":0}]
[null,{"$f":"'القطع '!C29","v":0},null,null,{"$f":"'القطع '!F29","v":0},25,{"$f":"'الاصلاحات '!B28","v":0},null,null,{"$f":"'الاصلاحات '!E28","v":0}]
[null,"المجموع ",null,{"$f":"'القطع '!F31","v":0},null,null,"المجموع ",null,{"$f":"'الاصلاحات '!E29","v":0}]
[]
[]
[null,{"$f":"'العطل ونقصان القيمة'!C10","v":0}]
[null,{"$f":"'العطل ونقصان القيمة'!C11","v":0}]
[null,{"$f":"'العطل ونقصان القيمة'!C12","v":0}]
[null,{"$f":"'العطل ونقصان القيمة'!C13","v":0}]
[null,{"$f":"'العطل ونقصان القيمة'!C14","v":0}]
[null,{"$f":"'العطل ونقصان القيمة'!C15","v":0}]
[]
[]
[]
[]
[]
[]
[]
["عمان -إِشارةالرابية بجانب فندق ديز إن-تلفاكس :(06/5504053)تلفون :(06/5504054)موبايل:(0795575439)"]
["Amman - AL Rabyah Traffic - Dayes In Hotel   * Telfax: 06 550 40 53 Tel :06 550 40 54 Mobile:079 557 54 39"]
[]
["    مؤسسة العقاب لتسوية الخسائر ",null,null,null,null,null,"AL - EQAB EAST "]
[" معاين ومسوي خسائر - مرخص ",null,null,null,null,null,"Loss Adjuster by the Insurance expert"]
["التاريــــــخ:-",{"$f":"reportinfo!D4","v":"00:00:00"},null,null,null,null,null,"تقرير رقم :- ",{"$f":"reportinfo!D3","v":0}]
[]
["رابعاً : تحديد بدل نقصان القيمة "]
[null," مـن اجل تحديد نقصان قيمة المركبة لابـد مــن الأخــذ بعيــن الإعتبـار نــوع المركبــة وموديلهــا "]
[null,"والإضافات  المتوفرة فيها وحجم الطلب عليها في السوق المحلي والحالة العامة للمركبة قبل الحادث ."]
[null,"البيـــــــــــان ",null,null,null,null,null,"القيمة "]
[null,null,null,null,null,null,null,"فلس دينار "]
["*","  أقدر القيمة السوقية للمركبة قبــــــل الحــــــــادث بــــــ",null,null,null,null,null,{"$f":"'العطل ونقصان القيمة'!F4","v":0}]
["*","  أقدر القيمة السوقية للمركبة بعد الحادث وقبل الاصلاح بـ",null,null,null,null,null,{"$f":"'العطل ونقصان القيمة'!F5","v":0}]
["*","  الفرق بين القيمة السوقية قبل الحادث وقبــل الاصلاح بــ",null,null,null,null,null,{"$f":"'العطل ونقصان القيمة'!F6","v":0}]
["*","  أقدر الانخفاض بقيمة المركبة بعــد عمليــة الاصلاح بــــ",null,null,null,null,null,{"$f":"'العطل ونقصان القيمة'!F7","v":0}]
[null,{"$f":"H155","v":0},"─",{"$f":"'القطع '!F31","v":0},"+",{"$f":"'الاصلاحات '!E29","v":0},"="]
[{"$f":"'العطل ونقصان القيمة'!B18","v":0},{"$f":"'العطل ونقصان القيمة'!C18","v":0},null,null,{"$f":"'العطل ونقصان القيمة'!C20","v":0}]
[null,{"$f":"'العطل ونقصان القيمة'!C19","v":0},null,null,{"$f":"'العطل ونقصان القيمة'!C21","v":0}]
["خامساً: تحديد بدل فوات المنفعة "]
[null,"تبين أنهـــا بحاجة لمدة إصلاح فعليـة ",null,null,{"$f":"E33","v":0},{"$f":"E32","v":0}]
[null,"أقـــــدر المـثـل اليومـــي للمركبــة بـ",null,null,{"$f":"G33","v":0},{"$f":"G32","v":0}]
["إستناداً إلى ماورد أعلاه فإن بدل فوات المنفعة تكون ناتج ضرب عدد أيام التعطيل مضروبا في قيمة المثل اليومي . "]
[null,{"$f":"E32","v":0},{"$f":"F32","v":"X"},{"$f":"G32","v":0},"=",{"$f":"H32","v":0},"دينار "]
[null,{"$f":"E33","v":0},null,{"$f":"G33","v":0}]
[" سادساً : إجمالي تكلفة الحادث"]
[null,"البـيــــــــــان ",null,null,null,null,null,"القيمـــة"]
[null,null,null,null,null,null,null,"فلس","دينار"]
[null,"  أقدر ثمن القطع التبديلية بــ",null,null,null,null,null,{"$f":"H29","v":0}]
[null,"  أقــدر قـيمـة الأجــور   بـــ",null,null,null,null,null,{"$f":"H30","v":0}]
[null,"  أقدر بدل نقصان القيمة بــ",null,null,null,null,null,{"$f":"H31","v":0}]
[null,"  أقدر بدل فوات المنفعة بـــ",null,null,{"$f":"E32","v":0},"X",{"$f":"G32","v":0},{"$f":"H32","v":0}]
[null,null,null,null,{"$f":"E33","v":0},null,{"$f":"G33","v":0}]
[null,"  ونـــــــــــــــــــــــــــــش",null,null,null,null,null,{"$f":"H34","v":0}]
[null,"أقدر اجمالــــــي تكلفة الحادث  بـــ",null,null,null,null,null,{"$f":"H35","v":0}]
[null,{"$f":"Cur(H175,\"دينار أردني\",\"فلس\")","v":"صفر"}]
[null," تم تحرير هذا التقرير بما يتوافق مع أسس وقرارت هيئة التأمين لتسوية الخسائر"]
[null,"أتمنى أن أكون قـد وفقت في أداء المهمة الموكلة لي بكل أمانة وإخلاص ."]
[null,"وتفضلوا بقبول فائق الإحترام والتقدير ,,,,"]
[null,null,null,null,null,null,null,"معاين ومسوي خسائر"]
[null,null,null,null,null,null,null,"محمد أحمد عبد الله العوامله "]
[]
[]
[]
["عمان -إِشارةالرابية بجانب فندق ديز إن-تلفاكس :(06/5504053)تلفون :(06/5504054)موبايل:(0795575439)"]
["Amman - AL Rabyah Traffic - Dayes In Hotel   * Telfax: 06 550 40 53 Tel :06 550 40 54 Mobile:079 557 54 39"]
[]
[]
["    مؤسسة العقاب لتسوية الخسائر ",null,null,null,null,null,null,"AL - EQAB EAST"]
[" معاين ومسوي خسائر - مرخص ",null,null,null,null,null,"Loss Adjuster by the Insurance expert"]
["التاريــــــخ:-",{"$f":"B146","v":"00:00:00"},null,null,null,null,null,null,"تقرير رقم :- ",{"$f":"I146","v":0}]
[]
[null,null,null,"فاتورة ذمم "]
[]
[]
[null,"الســــادة /",{"$f":"reportinfo!D5","v":0},null,null,null,"المحترمين "]
[]
["يرجـى  تسديد المبالغ التالية  :-"]
[]
["مبلغ :-",{"$f":"الفاتورة!H5","v":0},{"$f":"Cur(B200,\"دينار\",\"فلس\")","v":"صفر"},null,"وذلك بـــدل أتعـــــاب",null,{"$f":"الفاتورة!H4","v":0}]
["مبلغ :-",{"$f":"الفاتورة!H7","v":0},{"$f":"Cur(B201,\"دينار\",\"فلس\")","v":"صفر"},null,{"$f":"الفاتورة!H6","v":0}]
["مبلغ :-",{"$f":"الفاتورة!H9","v":0},"صفر",null,{"$f":"الفاتورة!H8","v":0}]
[]
["المجموع ",{"$f":"SUM(B200:B202)","v":0},{"$f":"Cur(B204,\"دينارأردني\",\"فلس\")","v":"صفر"}]
[]
[]
["رقم الحادث ",null,{"$f":"reportinfo!D6","v":0}]
[{"$f":"reportinfo!B8","v":0},null,{"$f":"reportinfo!D8","v":0}]
["رقم المركبة ",null,{"$f":"A12","v":0}]
["نوع المركبة ",null,{"$f":"C12","v":0}]
["إسم مالك المركبة ",null,{"$f":"B7","v":0}]
[]
[]
[]
[null,null,"وتفضلوا بقبول فائق الإحترام والتقدير ,,,,"]
[]
[]
[]
[]
[]
[]
[null,null,null,null,null,null,"معاين ومسوي خسائر"]
[null,null,null,null,null,null,"محمد أحمد عبد الله العوامله "]
[]
[]
[]
[]
[]
[]
[]
[]
["عمان -إِشارةالرابية بجانب فندق ديز إن-تلفاكس :(06/5504053)تلفون :(06/5504054)موبايل:(0795575439)"]
["Amman - AL Rabyah Traffic - Dayes In Hotel   * Telfax: 06 550 40 53 Tel :06 550 40 54 Mobile:079 557 54 39"]

{"sheet":"وصل إستلام ","index":14,"n_rows":27,"n_cols":10,"rows_kept":27,"cut":false,"hidden":false,"merged":[[4,1,4,2],[25,0,25,9],[26,0,26,9],[2,0,2,2],[7,3,8,6],[3,0,3,2],[11,3,11,6],[13,3,13,7],[15,3,15,4],[15,6,15,7],[19,7,19,9],[20,7,20,9]]}
[]
[]
["    مؤسسة العقاب لتسوية الخسائر ",null,null,null,null,null," ",null,null,"AL - EQAB EAST"]
[" معاين ومسوي خسائر - مرخص ",null,null,null,null,null,null,null,null,"Loss Adjuster by the Insurance expert"]
[{"$f":"التقرير!#REF!","v":{"$error":"#REF!"}},{"$f":"التقرير!B191","v":"00:00:00"}]
[]
[]
[null,null,null,"وصل إستلام "]
[]
[]
[]
[null,"وصلني من ",{"$f":"الفاتورة!G13","v":"السيد"},{"$f":"الفاتورة!H13","v":0},null,null,null,{"$f":"الفاتورة!L13","v":0}]
[]
[null,"مبلغ وقدره ",{"$f":"الفاتورة!G14","v":0},{"$f":"Cur(C14,\"دينار أردني\",\"فلس\")","v":"صفر"}]
[]
[null,"وذلك بـــدل أتعــــــاب",null,{"$f":"الفاتورة!G15","v":0},null,"للمركبة رقم",{"$f":"#REF!","v":{"$error":"#REF!"}},null,{"$f":"#REF!","v":{"$error":"#REF!"}}]
[]
[]
[]
[null,null,null,null,null,null,null,"معاين ومسوي خسائر"]
[null,null,null,null,null,null,null,"محمد أحمد عبد الله العوامله "]
[]
[]
[]
[]
["عمان -إِشارةالرابية بجانب فندق ديز إن-تلفاكس :(06/5504053)تلفون :(06/5504054)موبايل:(0795575439)"]
["Amman - AL Rabyah Traffic - Dayes In Hotel   * Telfax: 06 550 40 53 Tel :06 550 40 54 Mobile:079 557 54 39"]

{"sheet":"الصور","index":15,"n_rows":52,"n_cols":10,"rows_kept":52,"cut":false,"hidden":false,"merged":[[1,0,1,2],[1,6,1,9],[2,0,2,2],[2,6,2,9],[3,1,3,2],[38,1,46,4],[38,5,46,8],[50,0,50,9],[51,0,51,9],[5,1,13,4],[5,5,13,8],[16,1,24,4],[16,5,24,8],[27,1,35,4],[27,5,35,8]]}
[]
["    مؤسسة العقاب لتسوية الخسائر ",null,null,null,null,null,"AL - EQAB EAST "]
[" معاين ومسوي خسائر - مرخص ",null,null,null,null,null,"Loss Adjuster by the Insurance expert"]
["التاريــــــخ:-",{"$f":"reportinfo!D4","v":"00:00:00"},null,null,null,null,null,null,"تقرير رقم :- ",{"$f":"reportinfo!D3","v":0}]
[]
[null,null,null,null,null," "]
[]
[]
[]
[]
[]
[]
[]
[]
[]
[]
[null,null,null,null,null," "]
[]
[]
[]
[]
[]
[]
[]
[]
[]
[]
[null,null,null,null,null," "]
[]
[]
[]
[]
[]
[]
[]
[]
[]
[]
[null,null,null,null,null," "]
[]
[]
[]
[]
[]
[]
[]
[]
[]
[]
[]
["عمان -إِشارةالرابية بجانب فندق ديز إن-تلفاكس :(06/5504053)تلفون :(06/5504054)موبايل:(0795575439)"]
["Amman - AL Rabyah Traffic - Dayes In Hotel   * Telfax: 06 550 40 53 Tel :06 550 40 54 Mobile:079 557 54 39"]

{"sheet":"الهيئة","index":16,"n_rows":239,"n_cols":12,"rows_kept":239,"cut":false,"hidden":false,"merged":[[40,0,41,0],[2,0,3,0],[2,1,3,1],[2,2,3,2],[40,1,41,1],[40,2,41,2],[80,0,81,0],[80,1,81,1],[80,2,81,2],[121,0,122,0],[121,1,122,1],[121,2,122,2],[160,0,161,0],[160,1,161,1],[160,2,161,2],[200,0,201,0],[200,1,201,1],[200,2,201,2]]}
[]
[]
["الرقم","إسم شركة التأمين ","إسم المؤمن له ","نوع التغطية","سبب الضرر ","مبلغ التأمين ","مدة التأمين ","تاريخ وقوع ","تاريــــخ تبيلغ ","المبلغ التقديري","تاريخ التقرير","مبلغ المطالبة"]
[null,null,null,"التامينيــــــة ","أو الخسارة ","حدود التغطية","من   -   إلى ","الخســـارة ","مسوي الخسائر","الأولي للمطالبة","النهائــــــــي ","النهائــــــي "]
[1,null,null,null,null,null,null,null,null,null,null,{"$f":"J5","v":0}]
[2,null,null,null,null,null,null,null,null,null,null,{"$f":"J6","v":0}]
[3,null,null,null,null,null,null,null,null,null,null,0]
[4,null,null,null,null,null,null,null,null,null,null,0]
[5,null,null,null,null,null,null,null,null,null,null,0]
[6,null,null,null,null,null,null,null,null,null,null,0]
[7,null,null,null,null,null,null,null,null,null,null,0]
[8,null,null,null,null,null,null,null,null,null,null,0]
[9,null,null,null,null,null,null,null,null,null,null,0]
[10,null,null,null,null,null,null,null,null,null,null,0]
[11,null,null,null,null,null,null,null,null,null,null,0]
[12,null,null,null,null,null,null,null,null,null,null,0]
[13,null,null,null,null,null,null,null,null,null,null,0]
[14,null,null,null,null,null,null,null,null,null,null,0]
[15,null,null,null,null,null,null,null,null,null,null,0]
[16,null,null,null,null,null,null,null,null,null,null,0]
[17,null,null,null,null,null,null,null,null,null,null,0]
[18,null,null,null,null,null,null,null,null,null,null,0]
[19,null,null,null,null,null,null,null,null,null,null,0]
[20,null,null,null,null,null,null,null,null,null,null,0]
[21,null,null,null,null,null,null,null,null,null,null,0]
[22,null,null,null,null,null,null,null,null,null,null,0]
[23,null,null,null,null,null,null,null,null,null,null,0]
[24,null,null,null,null,null,null,null,null,null,null,0]
[25,null,null,null,null,null,null,null,null,null,null,0]
[26,null,null,null,null,null,null,null,null,null,null,0]
[27,null,null,null,null,null,null,null,null,null,null,0]
[28,null,null,null,null,null,null,null,null,null,null,0]
[29,null,null,null,null,null,null,null,null,null,null,0]
[30,null,null,null,null,null,null,null,null,null,null,0]
[31,null,null,null,null,null,null,null,null,null,null,0]
[32,null,null,null,null,null,null,null,null,null,null,0]
[33,null,null,null,null,null,null,null,null,null,null,0]
[34,null,null,null,null,null,null,null,null,null,null,0]
[35,null,null,null,null,null,null,null,null,null,null,0]
[]
["الرقم","إسم شركة التأمين ","إسم المؤمن له ","نوع التغطية","سبب الضرر ","مبلغ التأمين ","مدة التأمين ","تاريخ وقوع ","تاريــــخ تبيلغ ","المبلغ التقديري","تاريخ التقرير","مبلغ المطالبة"]
[null,null,null,"التامينيــــــة ","أو الخسارة ","حدود التغطية","من   -   إلى ","الخســـارة ","مسوي الخسائر","الأولي للمطالبة","النهائــــــــي ","النهائــــــي "]
[36,null,null,null,null,null,null,null,null,null,null,{"$f":"J43","v":0}]
[37,null,null,null,null,null,null,null,null,null,null,{"$f":"J44","v":0}]
[38,null,null,null,null,null,null,null,null,null,null,0]
[39,null,null,null,null,null,null,null,null,null,null,0]
[40,null,null,null,null,null,null,null,null,null,null,0]
[41,null,null,null,null,null,null,null,null,null,null,0]
[42,null,null,null,null,null,null,null,null,null,null,0]
[43,null,null,null,null,null,null,null,null,null,null,0]
[44,null,null,null,null,null,null,null,null,null,null,0]
[45,null,null,null,null,null,null,null,null,null,null,0]
[46,null,null,null,null,null,null,null,null,null,null,0]
[47,null,null,null,null,null,null,null,null,null,null,0]
[48,null,null,null,null,null,null,null,null,null,null,0]
[49,null,null,null,null,null,null,null,null,null,null,0]
[50,null,null,null,null,null,null,null,null,null,null,0]
[51,null,null,null,null,null,null,null,null,null,null,0]
[52,null,null,null,null,null,null,null,null,null,null,0]
[53,null,null,null,null,null,null,null,null,null,null,0]
[54,null,null,null,null,null,null,null,null,null,null,0]
[55,null,null,null,null,null,null,null,null,null,null,0]
[56,null,null,null,null,null,null,null,null,null,null,0]
[57,null,null,null,null,null,null,null,null,null,null,0]
[58,null,null,null,null,null,null,null,null,null,null,0]
[59,null,null,null,null,null,null,null,null,null,null,0]
[60,null,null,null,null,null,null,null,null,null,null,0]
[61,null,null,null,null,null,null,null,null,null,null,0]
[62,null,null,null,null,null,null,null,null,null,null,0]
[63,null,null,null,null,null,null,null,null,null,null,0]
[64,null,null,null,null,null,null,null,null,null,null,0]
[65,null,null,null,null,null,null,null,null,null,null,0]
[66,null,null,null,null,null,null,null,null,null,null,0]
[67,null,null,null,null,null,null,null,null,null,null,0]
[68,null,null,null,null,null,null,null,null,null,null,0]
[69,null,null,null,null,null,null,null,null,null,null,0]
[70,null,null,null,null,null,null,null,null,null,null,0]
[71,null,null,null,null,null,null,null,null,null,null,0]
[72,null,null,null,null,null,null,null,null,null,null,0]
[]
["الرقم","إسم شركة التأمين ","إسم المؤمن له ","نوع التغطية","سبب الضرر ","مبلغ التأمين ","مدة التأمين ","تاريخ وقوع ","تاريــــخ تبيلغ ","المبلغ التقديري","تاريخ التقرير","مبلغ المطالبة"]
[null,null,null,"التامينيــــــة ","أو الخسارة ","حدود التغطية","من   -   إلى ","الخســـارة ","مسوي الخسائر","الأولي للمطالبة","النهائــــــــي ","النهائــــــي "]
[73,null,null,null,null,null,null,null,null,null,null,{"$f":"J83","v":0}]
[74,null,null,null,null,null,null,null,null,null,null,{"$f":"J84","v":0}]
[75,null,null,null,null,null,null,null,null,null,null,0]
[76,null,null,null,null,null,null,null,null,null,null,0]
[77,null,null,null,null,null,null,null,null,null,null,0]
[78,null,null,null,null,null,null,null,null,null,null,0]
[79,null,null,null,null,null,null,null,null,null,null,0]
[80,null,null,null,null,null,null,null,null,null,null,0]
[81,null,null,null,null,null,null,null,null,null,null,0]
[82,null,null,null,null,null,null,null,null,null,null,0]
[83,null,null,null,null,null,null,null,null,null,null,0]
[84,null,null,null,null,null,null,null,null,null,null,0]
[85,null,null,null,null,null,null,null,null,null,null,0]
[86,null,null,null,null,null,null,null,null,null,null,0]
[87,null,null,null,null,null,null,null,null,null,null,0]
[88,null,null,null,null,null,null,null,null,null,null,0]
[89,null,null,null,null,null,null,null,null,null,null,0]
[90,null,null,null,null,null,null,null,null,null,null,0]
[91,null,null,null,null,null,null,null,null,null,null,0]
[92,null,null,null,null,null,null,null,null,null,null,0]
[93,null,null,null,null,null,null,null,null,null,null,0]
[94,null,null,null,null,null,null,null,null,null,null,0]
[95,null,null,null,null,null,null,null,null,null,null,0]
[96,null,null,null,null,null,null,null,null,null,null,0]
[97,null,null,null,null,null,null,null,null,null,null,0]
[98,null,null,null,null,null,null,null,null,null,null,0]
[99,null,null,null,null,null,null,null,null,null,null,0]
[100,null,null,null,null,null,null,null,null,null,null,0]
[101,null,null,null,null,null,null,null,null,null,null,0]
[102,null,null,null,null,null,null,null,null,null,null,0]
[103,null,null,null,null,null,null,null,null,null,null,0]
[104,null,null,null,null,null,null,null,null,null,null,0]
[105,null,null,null,null,null,null,null,null,null,null,0]
[106,null,null,null,null,null,null,null,null,null,null,0]
[107,null,null,null,null,null,null,null,null,null,null,0]
[108,null,null,null,null,null,null,null,null,null,null,0]
[109,null,null,null,null,null,null,null,null,null,null,0]
[]
[]
["الرقم","إسم شركة التأمين ","إسم المؤمن له ","نوع التغطية","سبب الضرر ","مبلغ التأمين ","مدة التأمين ","تاريخ وقوع ","تاريــــخ تبيلغ ","المبلغ التقديري","تاريخ التقرير","مبلغ المطالبة"]
[null,null,null,"التامينيــــــة ","أو الخسارة ","حدود التغطية","من   -   إلى ","الخســـارة ","مسوي الخسائر","الأولي للمطالبة","النهائــــــــي ","النهائــــــي "]
[110,null,null,null,null,null,null,null,null,null,null,{"$f":"J124","v":0}]
[111,null,null,null,null,null,null,null,null,null,null,{"$f":"J125","v":0}]
[112,null,null,null,null,null,null,null,null,null,null,0]
[113,null,null,null,null,null,null,null,null,null,null,0]
[114,null,null,null,null,null,null,null,null,null,null,0]
[115,null,null,null,null,null,null,null,null,null,null,0]
[116,null,null,null,null,null,null,null,null,null,null,0]
[117,null,null,null,null,null,null,null,null,null,null,0]
[118,null,null,null,null,null,null,null,null,null,null,0]
[119,null,null,null,null,null,null,null,null,null,null,0]
[120,null,null,null,null,null,null,null,null,null,null,0]
[121,null,null,null,null,null,null,null,null,null,null,0]
[122,null,null,null,null,null,null,null,null,null,null,0]
[123,null,null,null,null,null,null,null,null,null,null,0]
[124,null,null,null,null,null,null,null,null,null,null,0]
[125,null,null,null,null,null,null,null,null,null,null,0]
[126,null,null,null,null,null,null,null,null,null,null,0]
[127,null,null,null,null,null,null,null,null,null,null,0]
[128,null,null,null,null,null,null,null,null,null,null,0]
[129,null,null,null,null,null,null,null,null,null,null,0]
[130,null,null,null,null,null,null,null,null,null,null,0]
[131,null,null,null,null,null,null,null,null,null,null,0]
[132,null,null,null,null,null,null,null,null,null,null,0]
[133,null,null,null,null,null,null,null,null,null,null,0]
[134,null,null,null,null,null,null,null,null,null,null,0]
[135,null,null,null,null,null,null,null,null,null,null,0]
[136,null,null,null,null,null,null,null,null,null,null,0]
[137,null,null,null,null,null,null,null,null,null,null,0]
[138,null,null,null,null,null,null,null,null,null,null,0]
[139,null,null,null,null,null,null,null,null,null,null,0]
[140,null,null,null,null,null,null,null,null,null,null,0]
[141,null,null,null,null,null,null,null,null,null,null,0]
[142,null,null,null,null,null,null,null,null,null,null,0]
[143,null,null,null,null,null,null,null,null,null,null,0]
[144,null,null,null,null,null,null,null,null,null,null,0]
[145,null,null,null,null,null,null,null,null,null,null,0]
[]
["الرقم","إسم شركة التأمين ","إسم المؤمن له ","نوع التغطية","سبب الضرر ","مبلغ التأمين ","مدة التأمين ","تاريخ وقوع ","تاريــــخ تبيلغ ","المبلغ التقديري","تاريخ التقرير","مبلغ المطالبة"]
[null,null,null,"التامينيــــــة ","أو الخسارة ","حدود التغطية","من   -   إلى ","الخســـارة ","مسوي الخسائر","الأولي للمطالبة","النهائــــــــي ","النهائــــــي "]
[146,null,null,null,null,null,null,null,null,null,null,{"$f":"J163","v":0}]
[147,null,null,null,null,null,null,null,null,null,null,{"$f":"J164","v":0}]
[148,null,null,null,null,null,null,null,null,null,null,0]
[149,null,null,null,null,null,null,null,null,null,null,0]
[150,null,null,null,null,null,null,null,null,null,null,0]
[151,null,null,null,null,null,null,null,null,null,null,0]
[152,null,null,null,null,null,null,null,null,null,null,0]
[153,null,null,null,null,null,null,null,null,null,null,0]
[154,null,null,null,null,null,null,null,null,null,null,0]
[155,null,null,null,null,null,null,null,null,null,null,0]
[156,null,null,null,null,null,null,null,null,null,null,0]
[157,null,null,null,null,null,null,null,null,null,null,0]
[158,null,null,null,null,null,null,null,null,null,null,0]
[159,null,null,null,null,null,null,null,null,null,null,0]
[160,null,null,null,null,null,null,null,null,null,null,0]
[161,null,null,null,null,null,null,null,null,null,null,0]
[162,null,null,null,null,null,null,null,null,null,null,0]
[163,null,null,null,null,null,null,null,null,null,null,0]
[164,null,null,null,null,null,null,null,null,null,null,0]
[165,null,null,null,null,null,null,null,null,null,null,0]
[166,null,null,null,null,null,null,null,null,null,null,0]
[167,null,null,null,null,null,null,null,null,null,null,0]
[168,null,null,null,null,null,null,null,null,null,null,0]
[169,null,null,null,null,null,null,null,null,null,null,0]
[170,null,null,null,null,null,null,null,null,null,null,0]
[171,null,null,null,null,null,null,null,null,null,null,0]
[172,null,null,null,null,null,null,null,null,null,null,0]
[173,null,null,null,null,null,null,null,null,null,null,0]
[174,null,null,null,null,null,null,null,null,null,null,0]
[175,null,null,null,null,null,null,null,null,null,null,0]
[176,null,null,null,null,null,null,null,null,null,null,0]
[177,null,null,null,null,null,null,null,null,null,null,0]
[178,null,null,null,null,null,null,null,null,null,null,0]
[179,null,null,null,null,null,null,null,null,null,null,0]
[180,null,null,null,null,null,null,null,null,null,null,0]
[181,null,null,null,null,null,null,null,null,null,null,0]
[182,null,null,null,null,null,null,null,null,null,null,0]
[]
["الرقم","إسم شركة التأمين ","إسم المؤمن له ","نوع التغطية","سبب الضرر ","مبلغ التأمين ","مدة التأمين ","تاريخ وقوع ","تاريــــخ تبيلغ ","المبلغ التقديري","تاريخ التقرير","مبلغ المطالبة"]
[null,null,null,"التامينيــــــة ","أو الخسارة ","حدود التغطية","من   -   إلى ","الخســـارة ","مسوي الخسائر","الأولي للمطالبة","النهائــــــــي ","النهائــــــي "]
[183,"الإتحاد الأردني لشركات التأمين ","عامر المتولي ","ضد الغير ",0,0,"2022/1/1-2021/1/1","2020-01-02","2020-01-01",2700,"2020-01-01",{"$f":"J203","v":2700}]
[184,"الإتحاد الأردني لشركات التأمين ","عامر المتولي ","ضد الغير ",0,0,"2022/1/1-2021/1/1","2020-01-02","2020-01-01",2700,"2020-01-01",{"$f":"J204","v":2700}]
[185,null,null,null,null,null,null,null,null,null,null,0]
[186,null,null,null,null,null,null,null,null,null,null,0]
[187,null,null,null,null,null,null,null,null,null,null,0]
[188,null,null,null,null,null,null,null,null,null,null,0]
[189,null,null,null,null,null,null,null,null,null,null,0]
[190,null,null,null,null,null,null,null,null,null,null,0]
[191,null,null,null,null,null,null,null,null,null,null,0]
[192,null,null,null,null,null,null,null,null,null,null,0]
[193,null,null,null,null,null,null,null,null,null,null,0]
[194,null,null,null,null,null,null,null,null,null,null,0]
[195,null,null,null,null,null,null,null,null,null,null,0]
[196,null,null,null,null,null,null,null,null,null,null,0]
[197,null,null,null,null,null,null,null,null,null,null,0]
[198,null,null,null,null,null,null,null,null,null,null,0]
[199,null,null,null,null,null,null,null,null,null,null,0]
[200,null,null,null,null,null,null,null,null,null,null,0]
[201,null,null,null,null,null,null,null,null,null,null,0]
[202,null,null,null,null,null,null,null,null,null,null,0]
[203,null,null,null,null,null,null,null,null,null,null,0]
[204,null,null,null,null,null,null,null,null,null,null,0]
[205,null,null,null,null,null,null,null,null,null,null,0]
[206,null,null,null,null,null,null,null,null,null,null,0]
[207,null,null,null,null,null,null,null,null,null,null,0]
[208,null,null,null,null,null,null,null,null,null,null,0]
[209,null,null,null,null,null,null,null,null,null,null,0]
[210,null,null,null,null,null,null,null,null,null,null,0]
[211,null,null,null,null,null,null,null,null,null,null,0]
[212,null,null,null,null,null,null,null,null,null,null,0]
[213,null,null,null,null,null,null,null,null,null,null,0]
[214,null,null,null,null,null,null,null,null,null,null,0]
[215,null,null,null,null,null,null,null,null,null,null,0]
[216,null,null,null,null,null,null,null,null,null,null,0]
[217,null,null,null,null,null,null,null,null,null,null,0]
[218,null,null,null,null,null,null,null,null,null,null,0]
[219,null,null,null,null,null,null,null,null,null,null,0]

{"sheet":"السجل","index":17,"n_rows":313,"n_cols":11,"rows_kept":313,"cut":false,"hidden":false,"merged":[[78,6,79,6],[115,0,116,6],[78,0,79,0],[37,8,38,8],[37,9,38,9],[37,10,38,10],[37,11,38,11],[76,0,77,6],[76,7,77,7],[76,8,77,8],[76,9,77,9],[76,10,77,10],[76,11,77,11],[39,0,40,0],[39,1,40,1],[39,2,40,2],[39,3,40,3],[39,4,40,4],[39,5,40,5],[39,6,40,6],[39,7,40,7],[37,0,38,6],[37,7,38,7],[154,11,155,11],[117,0,118,0],[156,0,157,0],[156,1,157,1],[156,2,157,2],[156,3,157,3],[156,4,157,4],[156,5,157,5],[156,6,157,6],[156,7,157,7],[154,0,155,6],[154,7,155,7],[154,8,155,8],[154,9,155,9],[154,10,155,10],[117,1,118,1],[117,2,118,2],[117,3,118,3],[117,4,118,4],[117,5,118,5],[117,6,118,6],[117,7,118,7],[232,10,233,10],[193,11,194,11],[195,0,196,0],[195,1,196,1],[195,2,196,2],[195,3,196,3],[195,4,196,4],[195,5,196,5],[195,6,196,6],[195,7,196,7],[193,0,194,6],[193,7,194,7],[193,8,194,8],[193,9,194,9],[193,10,194,10],[271,11,272,11],[115,7,116,7],[115,8,116,8],[115,9,116,9],[115,10,116,10],[115,11,116,11],[271,0,272,6],[271,7,272,7],[271,8,272,8],[271,9,272,9],[271,10,272,10],[232,11,233,11],[234,0,235,0],[234,1,235,1],[234,2,235,2],[234,3,235,3],[234,4,235,4],[234,5,235,5],[234,6,235,6],[234,7,235,7],[232,0,233,6],[232,7,233,7],[232,8,233,8],[232,9,233,9],[273,4,274,4],[273,5,274,5],[273,6,274,6],[273,7,274,7],[310,0,311,6],[310,7,311,7],[1,0,2,0],[273,0,274,0],[273,1,274,1],[273,2,274,2],[273,3,274,3],[1,7,2,7],[1,1,2,1],[1,2,2,2],[1,3,2,3],[1,4,2,4],[1,5,2,5],[1,6,2,6],[78,7,79,7],[78,1,79,1],[78,2,79,2],[78,3,79,3],[78,4,79,4],[78,5,79,5],[310,8,311,8],[310,9,311,9],[310,10,311,10],[310,11,311,11],[312,0,313,0],[312,1,313,1],[312,2,313,2],[312,3,313,3],[312,4,313,4],[312,5,313,5],[312,6,313,6],[312,7,313,7]]}
[]
["الرقم","إسم الشركة","رقم الحادث ","أرقام أاخرى","رقم التقرير","تاريخ التقرير","رقم السيارة","مبلغ الفاتورة ","تاريخ التحصيل","المدفوع ","الرصيد"]
[]
[1]
[2]
[3]
[4]
[5]
[6]
[7]
[8]
[9]
[10]
[11]
[12]
[13]
[14]
[15]
[16]
[17]
[18]
[19]
[20]
[21]
[22]
[23]
[24]
[25]
[26]
[27]
[28]
[29]
[30]
[31]
[32]
[33]
[]
["المجموع ",null,null,null,null,null,null,{"$f":"SUM(H4:H38)","v":1980}]
[]
["الرقم","إسم الشركة","رقم الحادث ","أرقام أاخرى","رقم التقرير","تاريخ التقرير","رقم السيارة","مبلغ الفاتورة "]
[]
[34]
[35]
[36]
[37]
[38]
[39]
[40]
[41]
[42]
[43]
[44]
[45]
[46]
[47]
[48]
[49]
[50]
[51]
[52]
[53]
[54]
[55]
[56]
[57]
[58]
[59]
[60]
[61]
[62]
[63]
[64]
[65]
[66]
[67]
[68]
["المجموع ",null,null,null,null,null,null,{"$f":"SUM(H42:H76)+SUM(H4:H36)","v":0}]
[]
["الرقم","إسم الشركة","رقم الحادث ","أرقام أاخرى","رقم التقرير","تاريخ التقرير","رقم السيارة","مبلغ الفاتورة "]
[]
[69]
[70]
[71]
[72]
[73]
[74]
[75]
[76]
[77]
[78]
[79]
[80]
[81]
[82]
[83]
[84]
[85]
[86]
[87]
[88]
[89]
[90]
[91]
[92]
[93]
[94]
[95]
[96]
[97]
[98]
[99]
[100]
[101]
[102]
[103]
["المجموع ",null,null,null,null,null,null,{"$f":"SUM(H81:H115)+(H77)","v":0}]
[]
["الرقم","إسم الشركة","رقم الحادث ","أرقام أاخرى","رقم التقرير","تاريخ التقرير","رقم السيارة","مبلغ الفاتورة "]
[]
[103]
[104]
[105]
[106]
[107]
[108]
[109]
[110]
[111]
[112]
[113]
[114]
[115]
[116]
[117]
[118]
[119]
[120]
[121]
[122]
[123]
[124]
[125]
[126]
[127]
[128]
[129]
[130]
[131]
[132]
[133]
[134]
[135]
[136]
[137]
["المجموع ",null,null,null,null,null,null,{"$f":"SUM(H120:H154)+(H116)","v":0}]
[]
["الرقم","إسم الشركة","رقم الحادث ","أرقام أاخرى","رقم التقرير","تاريخ التقرير","رقم السيارة","مبلغ الفاتورة "]
[]
[138]
[139]
[140]
[141]
[142]
[143]
[144]
[145]
[146]
[147]
[148]
[149]
[150]
[151]
[152]
[153]
[154]
[155]
[156]
[157]
[158]
[159]
[160]
[161]
[162]
[163]
[164]
[165]
[166]
[167]
[168]
[169]
[170]
[171]
[172]
["المجموع ",null,null,null,null,null,null,{"$f":"SUM(H159:H193)+(H155)","v":0}]
[]
["الرقم","إسم الشركة","رقم الحادث ","أرقام أاخرى","رقم التقرير","تاريخ التقرير","رقم السيارة","مبلغ الفاتورة "]
[]
[173]
[174]
[175]
[176]
[177,"الإتحاد الأردني لشركات التأمين ",10,20,1,"2020-01-01","60- 999",20]
[178,"الإتحاد الأردني لشركات التأمين ",10,20,1,"2020-01-01","60- 999",20]
[179]
[180]
[181]
[182]
[183]
[184]
[185]
[186]
[187]
[188]
[189]
[190]
[191]
[192]
[193]
[194]
[195]
[196]
[197]
[198]
[199]
[200]
[201]
[202]
[203]
[204]
[205]
[206]
[207]
["المجموع ",null,null,null,null,null,null,{"$f":"SUM(H198:H232)+(H194)","v":40}]
[]
["الرقم","إسم الشركة","رقم الحادث ","أرقام أاخرى","رقم التقرير","تاريخ التقرير","رقم السيارة","مبلغ الفاتورة "]
[]
[208]
[209]
[210]
[211]
[212]
[213]
[214]
[215]
[216]
[217]
[218]
[219]
[220]
[221]
[222]
[223]
[224]
[225]
[226]
[227]
[228]
[229]
[230]
[231]
[232]
[233]
[234]
[235]
[236]
[237]
[238]
[239]
[240]
[241]
[242]
["المجموع ",null,null,null,null,null,null,{"$f":"SUM(H237:H271)+(H233)","v":40}]
[]
["الرقم","إسم الشركة","رقم الحادث ","أرقام أاخرى","رقم التقرير","تاريخ التقرير","رقم السيارة","مبلغ الفاتورة "]
[]
[]
[]
[]
[]
[]
[]
[]
[]
[]
[]
[]
[]
[]
[]
[]
[]
[]
[]
[]
[]
[]
[]
[]
[]
[]
[]
[]
[]
[]
[]
[]
[]
[]
[]
[]
["المجموع ",null,null,null,null,null,null,{"$f":"SUM(H276:H310)+(H272)","v":40}]
[]
["الرقم","إسم الشركة","رقم الحادث ","أرقام أاخرى","رقم التقرير","تاريخ التقرير","رقم السيارة","مبلغ الفاتورة "]

{"sheet":"للنقل","index":18,"n_rows":10,"n_cols":12,"rows_kept":10,"cut":false,"hidden":false,"merged":[[2,1,3,1],[2,2,3,2],[1,1,1,11],[7,1,7,7]]}
[]
[]
[null,"إسم شركة التأمين ","إسم المؤمن له ","نوع التغطية","سبب الضرر ","مبلغ التأمين ","مدة التأمين ","تاريخ وقوع ","تاريــــخ تبيلغ ","المبلغ التقديري","تاريخ التقرير","مبلغ المطالبة"]
[null,null,null,null,null,null,null,null,"مسوي الخسائر","الأولي للمطالبة","النهائــــــــي ","النهائــــــي "]
[null,{"$f":"reportinfo!D5","v":0},{"$f":"مسبب!H5","v":0},{"$f":"مسبب!H11","v":0},{"$f":"F20","v":0},{"$f":"F20","v":0},{"$f":"مسبب!H10","v":0},{"$f":"'معلومات الحادث '!H6","v":"00:00:00"},{"$f":"المتضررة!G21","v":"00:00:00"},{"$f":"'العطل ونقصان القيمة'!L16","v":0},{"$f":"reportinfo!D4","v":"00:00:00"},{"$f":"J5","v":0}]
[]
[]
[]
[null,"إسم الشركة","رقم حادث الشركة ","رقم الدعوى","رقم التقرير","تاريخ التقرير","رقم السيارة","مبلغ الفاتورة "]
[null,{"$f":"B5","v":0},{"$f":"reportinfo!D6","v":0},{"$f":"reportinfo!D8","v":0},{"$f":"reportinfo!D3","v":0},{"$f":"reportinfo!D4","v":"00:00:00"},{"$f":"المتضررة!G4","v":0},{"$f":"الفاتورة!H10","v":0}]

{"sheet":"فلتر","index":19,"n_rows":201,"n_cols":13,"rows_kept":201,"cut":false,"hidden":false,"merged":[[0,2,0,3],[0,0,0,1]]}
["إسم الشركة ",null,"شركة المجموعة العربية الأردنية للتأمين ",null,null,null,null,null,null,null,null,null,"الإتحاد الأردني لشركات التأمين "]
[null,null,null,null,null,null,null,null,null,null,null,null,"شركة التأمين الأردنية"]
[null,null,null,null,null,null,null,null,null,null,null,null,"شركة الشرق الأوسط للتأمين "]
[null,"إسم الشركة","رقم حادث الشركة ","رقم الدعوى","رقم التقرير","تاريخ التقرير","رقم السيارة","مبلغ الفاتورة ",null,null,null,null,"شركة تأمين الوطنية "]
[1,0,0,0,0,0,0,0,null,null,null,null,"الشركة المتـحدة للتأمين"]
[2,"شركة التأمين الإسلامية ",0,0,0,0,0,0,null,null,null,null,"شركة المنارة للتأمين "]
[3,"شركة الشرق العربي للتأمين ",0,0,0,0,0,0,null,null,null,null,"الشركة العربية - الأردن للتأمين "]
[4,"شركة الصفوة للتأمين ",0,0,0,0,0,0,null,null,null,null,"شركة القدس للتأمين "]
[5,"شركة التأمين الإسلامية ",0,0,0,0,0,0,null,null,null,null,"شركة النسر العربي للتأمين "]
[6,null,null,null,null,null,null,null,null,null,null,null,"الشركة الأردنيه الفرنسية للتأمين "]
[7,null,null,null,null,null,null,null,null,null,null,null,"شركة الإتحاد العربي الدولي للتأمين "]
[8,null,null,null,null,null,null,null,null,null,null,null,"شركة دلتـا للتأمين "]
[9,null,null,null,null,null,null,null,null,null,null,null,"شركة الأراضي المقدسة للتأمين "]
[10,null,null,null,null,null,null,null,null,null,null,null,"شركة العرب للتأمين على الحياة والحوادث"]
[11,null,null,null,null,null,null,null,null,null,null,null,"شركة فيـلادلفيا للتأمين "]
[12,null,null,null,null,null,null,null,null,null,null,null,"شركة الأردن الدولية للتأمين "]
[13,null,null,null,null,null,null,null,null,null,null,null,"شركة الشرق العربي للتأمين "]
[14,null,null,null,null,null,null,null,null,null,null,null,"شركة المجموعة العربية الأردنية للتأمين "]
[15,null,null,null,null,null,null,null,null,null,null,null,"شركة المجموعة العربية الاوروبية للتأمين "]
[16,null,null,null,null,null,null,null,null,null,null,null,"شركة التأمين الإسلامية"]
[17,null,null,null,null,null,null,null,null,null,null,null,"شركة الضامنون العرب للتأمين "]
[18]
[19]
[20]
[21]
[22]
[23]
[24]
[25]
[26]
[27]
[28]
[29]
[30]
[31]
[32]
[33]
[34]
[35]
[36]
[37]
[38]
[39]
[40]
[41]
[42]
[43]
[44]
[45]
[46]
[47]
[48]
[49]
[50]
[51]
[52]
[53]
[54]
[55]
[56]
[57]
[58]
[59]
[60]
[61]
[62]
[63]
[64]
[65]
[66]
[67]
[68]
[69]
[70]
[71]
[72]
[73]
[74]
[75]
[76]
[77]
[78]
[79]
[80]
[81]
[82]
[83]
[84]
[85]
[86]
[87]
[88]
[89]
[90]
[91]
[92]
[93]
[94]
[95]
[96]
[97]
[98]
[99]
[100]
[101]
[102]
[103]
[104]
[105]
[106]
[107]
[108]
[109]
[110]
[111]
[112]
[113]
[114]
[115]
[116]
[117]
[118]
[119]
[120]
[121]
[122]
[123]
[124]
[125]
[126]
[127]
[128]
[129]
[130]
[131]
[132]
[133]
[134]
[135]
[136]
[137]
[138]
[139]
[140]
[141]
[142]
[143]
[144]
[145]
[146]
[147]
[148]
[149]
[150]
[151]
[152]
[153]
[154]
[155]
[156]
[157]
[158]
[159]
[160]
[161]
[162]
[163]
[164]
[165]
[166]
[167]
[168]
[169]
[170]
[171]
[172]
[173]
[174]
[175]
[176]
[177]
[178]
[179]
[180]
[181]
[182]
[183]
[184]
[185]
[186]
[187]
[188]
[189]
[190]
[191]
[192]
[193]
[194]
[195]
[196]
[197]

{"sheet":"ارقام الخلايا المطلوب تفريغها","index":20,"n_rows":17,"n_cols":15,"rows_kept":17,"cut":false,"hidden":false,"merged":[[5,14,5,16],[6,14,6,16],[0,4,0,10]]}
[null,null,null,null,"أسماء الشيت والخلايا المراد تفريغها بعد الانتهاء"]
[]
["إسم الورقة","رقم الخلية ",null,"إسم الورقة","رقم الخلية ",null,"إسم الورقة","رقم الخلية ",null,"إسم الورقة","رقم الخلية ",null,"إسم الورقة","رقم الخلية "]
["reportinfo","D3 : D13",null,"معلومات الحادث","H4 : H16",null,"مسبب","H4 : H13",null,"المتضررة","H4 : H21",null,"القطع","C5 : C29"]
[null,"H4 : H16",null,null,null,null,null,null,null,null,"E23 : E28",null,null,"F4 : F29"]
[null,"B8",null,"إسم الورقة","رقم الخلية ",null,"إسم الورقة","رقم الخلية ",null,null,null,null,null,"G4 : G29","على ان لا يأُثر على معدل سعر القطع"]
[null,"B10",null,"الاصلاحات","B4 : B28",null,"الفاتورة","H4 : H9",null,null,null,null,null,"H4 : H29",{"$f":"O6","v":"على ان لا يأُثر على معدل سعر القطع"}]
[null,null,null,null,"E4 : E28",null,null,"H13"]
["إسم الورقة","رقم الخلية ",null,null,null,null,null,"G14 : G15"]
["العطل ونقصان القيمة","F4 : F6",null,null,null,null,null,"L13"]
[null,"C10 : C15"]
[null,"C18 : C21"]
[null,"F17"]
[null,"B18"]
[null,"L4 : L5"]
[null,"L15"]
[null,"M4 : M5"]